{"text_format":"1","workbook":"xlsx","n_sheets":10,"sheets":["Cover","Teams","Calendar","Schedule","File Receipts","2013 Draft","2013 Draft Picks","Tie Breakers","Transactions","Leaders"],"not_rendered":{"charts":0,"images":1,"macros":0,"external_links":0,"defined_names":0,"comments":0,"pivot_tables":0},"unopened":[],"bounds":{"document_bytes":16777216,"sheet_cells":100000,"rows_first":2000,"rows_last":500,"rows_between":2000,"halvings":0,"cell_chars":16384,"cell_head_chars":4096},"cells_cut":0,"cells_raw":0,"read":"whole","date_system":"1900"}

{"sheet":"Cover","index":0,"n_rows":1,"n_cols":1,"rows_kept":1,"cut":false,"hidden":false,"merged":[[0,0,13,10],[14,0,14,10]]}
["IFL League Workbook 2013"]

{"sheet":"Teams","index":1,"n_rows":41,"n_cols":6,"rows_kept":41,"cut":false,"hidden":false,"merged":[[0,0,0,5],[1,0,2,5],[21,0,22,5]]}
["Teams"]
["National Football Conference (NFC)"]
[]
["East","Owner","e-mail","AOL IM","Hometown","Best Time"]
["Arizona Cardinals","Jim Heaton","Wyvern007@aol.com","Wyvern007","West Palm Beach, Florida","Evenings 6:00 to 9:00 EST; Also available weekends"]
["Dallas Cowboys","Steve Hart","stratkid1122@comcast.net","StratColonel"]
["New York Giants","Jude Plante","HeyyyJude@yahoo.com"]
["Philadelphia Eagles","Greg Mason","gmason73@comcast.net","gm291"]
["Washington Redskins","Kris Heaton","kheaton15@live.com","UCFKris123"]
["Central","Owner","e-mail","AOL IM","Hometown","Best Time"]
["Chicago Bears","Bill Baker","billbaker1797@gmail.com","wilbk "]
["Detroit Lions","Chris Gotay","chrisgotay@yahoo.com","ceegeect","Manchester, Connecticut","Weeknights 7-10 EST  Weekends - Anytime"]
["Green Bay Packers","John Conners","connersjr@yahoo.com","john conners","Vancouver, BC, Canada"]
["Minnesota Vikings","Rich Robb","richardtrobb@aol.com","richardtrobb","Memphis, Tennessee"]
["Tampa Bay Bucanneers","Barry King","bking50@rochester.rr.com","barry king","Elba, New York"]
["West","Owner","e-mail","AOL IM","Hometown","Best Time"]
["Atlanta Falcons","GM: Michael Dahan\nHC:  Marty Golden","mdahan99@gmail.com\ngolden.marty@gmail.com","pdpower963"]
["Carolina Panthers","Sean Britt","snbritt@gmail.com","Bravesunited"]
["New Orleans Saints","Jim Rice","ricejim01@aol.com","jimbo0121712000"]
["San Francisco 49ers","Charles Pester","cpester@telus.net","Charles Pester"]
["St. Louis Rams","Ryan Heaton","Heaton13@yahoo.com","rjheaton"]
["American Football Conference (AFC)"]
[]
["East","Owner","e-mail","AOL IM","Hometown","Best Time"]
["Buffalo Bills","John Deason","inbudget@yahoo.com","inbudget2004",null,"Monday afternoons and evenings after 6:00 p.m. PCT"]
["Indianapolis Colts","Ken Griffith","kgrffth@aol.com","kgrffth"]
["Miami Dolphins","Brian Macri","pipestaver@aol.com","pipestaver","Mt. Sinai, New York"]
["New England Patriots","Kevin Kolb","kkolb3569@aol.com","kkolb3569","Schaumburg, Illinois","Evenings after 8:30 CST"]
["New York Jets","Bob Durfee","bobdurf@cs.com","bobdurf","Williamsville, New York"]
["Central","Owner","e-mail","AOL IM","Hometown","Best Time"]
["Baltimore Ravens","Scott Master","souki@aol.com","souki","Baltimore, Maryland"]
["Cincinnati Bengals","John Storer","jstorer715@yahoo.com","jcstorer","Loveland, Ohio","Evenings after 9:00 EST"]
["Jacksonville Jaguars","Dave Hood","dhoodvan@yahoo.com",null,"Vancouver, BC, Canada"]
["Pittsburgh Steelers","Vince Diiorio","diioriovincenzo@sympatico.ca","SLUGGERSPOWER"]
["Tennessee Titans","Rick Brunskill","rickbrunskill@gmail.com","BCLANGLEYCA","Langley, BC"]
["West","Owner","e-mail","AOL IM","Hometown","Best Time"]
["Denver Broncos","Doug Crandall","crandall@pld.com","crandalldoug","Deerfield, Kansas  "]
["Houston Texans","Pete Katsafanas","pete1028@bellatlantic.net","OFLKAT","Kutztown, PA"]
["Kansas City Chiefs","Bob Sarcewicz","rsarce@comcast.net","rsarce17"]
["Oakland Raiders","Kurt Johnson","GOVIKINGS3@aol.com","GOVIKINGS3","Ruralhall, NC","Monday through Thursday; Work weekends."]
["San Diego Chargers","Jerry Banko","jabanko@roadrunner.com","JerryBErie","Erie, PA","Anytime except late evenings."]

{"sheet":"Calendar","index":2,"n_rows":84,"n_cols":4,"rows_kept":84,"cut":false,"hidden":false,"merged":[[0,1,0,3],[10,0,12,0],[14,0,16,0],[2,0,8,0],[50,0,52,0],[18,0,20,0],[22,0,24,0],[26,0,28,0],[30,0,32,0],[34,0,36,0],[38,0,40,0],[42,0,44,0],[46,0,48,0],[83,0,88,0],[66,0,68,0],[70,0,72,0],[54,0,56,0],[58,0,60,0],[62,0,64,0],[74,0,81,0]]}
[null,"Calendar"]
[]
["Pre-Season",{"$f":"+IF(C3<=TODAY(),\"X\",\"\")","v":"X"},"2013-04-10","IFL 2011 Pre-season Opens (trade freeze lifted)"]
[null,"X","2013-04-10","First File Distributed"]
[null,null,"2013-05-22","Pre-Draft Roster cuts due"]
[null,"X","2013-05-29","Pre-Draft File Distributed"]
[null,"X","2013-06-22","Draft Officially Begins"]
[null,"X","2013-07-14","Draft Completes"]
[null,"X","2013-07-17","Post Draft File Distributed"]
[]
["Week #1",{"$f":"+IF(C11<=TODAY(),\"X\",\"\")","v":"X"},"2013-08-25","Week 1 begins;  No Transactions"]
[null,{"$f":"+IF(C12<=TODAY(),\"X\",\"\")","v":"X"},{"$f":"+C11+2","v":"2013-08-27"},"Files Posted"]
[null,{"$f":"+IF(C13<=TODAY(),\"X\",\"\")","v":"X"},{"$f":"+C11+8","v":"2013-09-02"},"Game Results Due"]
[]
["Week #2",{"$f":"+IF(C15<=TODAY(),\"X\",\"\")","v":"X"},{"$f":"+C11+8","v":"2013-09-02"},"Transactions due"]
[null,{"$f":"+IF(C16<=TODAY(),\"X\",\"\")","v":"X"},{"$f":"+C15+2","v":"2013-09-04"},"Files Posted"]
[null,{"$f":"+IF(C17<=TODAY(),\"X\",\"\")","v":"X"},{"$f":"+C15+7","v":"2013-09-09"},"Game Results Due"]
[]
["Week #3",{"$f":"+IF(C19<=TODAY(),\"X\",\"\")","v":"X"},{"$f":"+C15+7","v":"2013-09-09"},"Transactions due"]
[null,{"$f":"+IF(C20<=TODAY(),\"X\",\"\")","v":"X"},{"$f":"+C19+2","v":"2013-09-11"},"Files Posted"]
[null,{"$f":"+IF(C21<=TODAY(),\"X\",\"\")","v":"X"},{"$f":"+C19+8","v":"2013-09-17"},"Game Results Due"]
[]
["Week #4",{"$f":"+IF(C23<=TODAY(),\"X\",\"\")","v":"X"},{"$f":"+C19+7","v":"2013-09-16"},"Transactions due"]
[null,{"$f":"+IF(C24<=TODAY(),\"X\",\"\")","v":"X"},{"$f":"+C23+2","v":"2013-09-18"},"Files Posted"]
[null,{"$f":"+IF(C25<=TODAY(),\"X\",\"\")","v":"X"},{"$f":"+C23+8","v":"2013-09-24"},"Game Results Due"]
[]
["Week #5",{"$f":"+IF(C27<=TODAY(),\"X\",\"\")","v":"X"},{"$f":"+C23+7","v":"2013-09-23"},"Transactions due"]
[null,{"$f":"+IF(C28<=TODAY(),\"X\",\"\")","v":"X"},{"$f":"+C27+2","v":"2013-09-25"},"Files Posted"]
[null,{"$f":"+IF(C29<=TODAY(),\"X\",\"\")","v":"X"},{"$f":"+C27+8","v":"2013-10-01"},"Game Results Due"]
[]
["Week #6",{"$f":"+IF(C31<=TODAY(),\"X\",\"\")","v":"X"},{"$f":"+C27+7","v":"2013-09-30"},"Transactions due"]
[null,{"$f":"+IF(C32<=TODAY(),\"X\",\"\")","v":"X"},{"$f":"+C31+2","v":"2013-10-02"},"Files Posted"]
[null,{"$f":"+IF(C33<=TODAY(),\"X\",\"\")","v":"X"},{"$f":"+C31+8","v":"2013-10-08"},"Game Results Due"]
[null,null,{"$f":"+C32+5","v":"2013-10-07"},"TRADE DEADLINE - 11:59"]
["Week #7",{"$f":"+IF(C35<=TODAY(),\"X\",\"\")","v":"X"},{"$f":"+C31+7","v":"2013-10-07"},"Transactions due"]
[null,{"$f":"+IF(C36<=TODAY(),\"X\",\"\")","v":"X"},{"$f":"+C35+2","v":"2013-10-09"},"Files Posted"]
[null,{"$f":"+IF(C37<=TODAY(),\"X\",\"\")","v":"X"},{"$f":"+C35+8","v":"2013-10-15"},"Game Results Due"]
[]
["Week #8",{"$f":"+IF(C39<=TODAY(),\"X\",\"\")","v":"X"},{"$f":"+C35+7","v":"2013-10-14"},"Transactions due"]
[null,{"$f":"+IF(C40<=TODAY(),\"X\",\"\")","v":"X"},{"$f":"+C39+2","v":"2013-10-16"},"Files Posted"]
[null,{"$f":"+IF(C41<=TODAY(),\"X\",\"\")","v":"X"},{"$f":"+C39+8","v":"2013-10-22"},"Game Results Due"]
[]
["Week #9",{"$f":"+IF(C43<=TODAY(),\"X\",\"\")","v":"X"},{"$f":"+C39+7","v":"2013-10-21"},"Transactions due"]
[null,{"$f":"+IF(C44<=TODAY(),\"X\",\"\")","v":"X"},{"$f":"+C43+2","v":"2013-10-23"},"Files Posted"]
[null,{"$f":"+IF(C45<=TODAY(),\"X\",\"\")","v":""},{"$f":"+C43+8","v":"2013-10-29"},"Game Results Due"]
[]
["Week #10",{"$f":"+IF(C47<=TODAY(),\"X\",\"\")","v":""},{"$f":"+C43+7","v":"2013-10-28"},"Transactions due"]
[null,{"$f":"+IF(C48<=TODAY(),\"X\",\"\")","v":""},{"$f":"+C47+2","v":"2013-10-30"},"Files Posted"]
[null,{"$f":"+IF(C49<=TODAY(),\"X\",\"\")","v":""},{"$f":"+C47+8","v":"2013-11-05"},"Game Results Due"]
[]
["Week #11",{"$f":"+IF(C51<=TODAY(),\"X\",\"\")","v":""},{"$f":"+C47+7","v":"2013-11-04"},"Transactions due"]
[null,{"$f":"+IF(C52<=TODAY(),\"X\",\"\")","v":""},{"$f":"+C51+2","v":"2013-11-06"},"Files Posted"]
[null,{"$f":"+IF(C53<=TODAY(),\"X\",\"\")","v":""},{"$f":"+C51+8","v":"2013-11-12"},"Game Results Due"]
[]
["Week #12",{"$f":"+IF(C55<=TODAY(),\"X\",\"\")","v":""},{"$f":"+C51+7","v":"2013-11-11"},"Transactions due"]
[null,{"$f":"+IF(C56<=TODAY(),\"X\",\"\")","v":""},{"$f":"+C55+2","v":"2013-11-13"},"Files Posted"]
[null,{"$f":"+IF(C57<=TODAY(),\"X\",\"\")","v":""},{"$f":"+C55+8","v":"2013-11-19"},"Game Results Due"]
[]
["Week #13",{"$f":"+IF(C59<=TODAY(),\"X\",\"\")","v":""},{"$f":"+C55+7","v":"2013-11-18"},"Transactions due"]
[null,{"$f":"+IF(C60<=TODAY(),\"X\",\"\")","v":""},{"$f":"+C59+2","v":"2013-11-20"},"Files Posted"]
[null,{"$f":"+IF(C61<=TODAY(),\"X\",\"\")","v":""},{"$f":"+C59+8","v":"2013-11-26"},"Game Results Due"]
[]
["Week #14",{"$f":"+IF(C63<=TODAY(),\"X\",\"\")","v":""},{"$f":"+C59+7","v":"2013-11-25"},"Transactions due"]
[null,{"$f":"+IF(C64<=TODAY(),\"X\",\"\")","v":""},{"$f":"+C63+2","v":"2013-11-27"},"Files Posted"]
[null,{"$f":"+IF(C65<=TODAY(),\"X\",\"\")","v":""},{"$f":"+C63+8","v":"2013-12-03"},"Game Results Due"]
[]
["Week #15",{"$f":"+IF(C67<=TODAY(),\"X\",\"\")","v":""},{"$f":"+C63+7","v":"2013-12-02"},"Transactions due"]
[null,{"$f":"+IF(C68<=TODAY(),\"X\",\"\")","v":""},{"$f":"+C67+2","v":"2013-12-04"},"Files Posted"]
[null,{"$f":"+IF(C69<=TODAY(),\"X\",\"\")","v":""},{"$f":"+C67+8","v":"2013-12-10"},"Game Results Due"]
[]
["Week #16",{"$f":"+IF(C71<=TODAY(),\"X\",\"\")","v":""},{"$f":"+C67+7","v":"2013-12-09"},"Transactions due"]
[null,{"$f":"+IF(C72<=TODAY(),\"X\",\"\")","v":""},{"$f":"+C71+2","v":"2013-12-11"},"Files Posted"]
[null,{"$f":"+IF(C73<=TODAY(),\"X\",\"\")","v":""},{"$f":"+C71+8","v":"2013-12-17"},"Game Results Due"]
[]
["Playoffs",{"$f":"+IF(C75<=TODAY(),\"X\",\"\")","v":"X"},"2013-01-02","Round One of Playoffs Begin"]
[null,"X",{"$f":"+C75+12","v":"2013-01-14"},"Round One of Playoffs Finished"]
[null,"X","2010-01-20","Conference Semi Finals Begin"]
[null,"X",{"$f":"+C77+5","v":"2010-01-25"},"Conference Semi Finals Finished"]
[null,"X",{"$f":"C78+2","v":"2010-01-27"},"Conference Finals Begin"]
[null,"X",{"$f":"+C79+5","v":"2010-02-01"},"Conference Finals Finished"]
[null,"X",{"$f":"+C80+2","v":"2010-02-03"},"IFL Super Bowl Week Begins"]
[null,"X",{"$f":"+C81+5","v":"2010-02-08"},"IFL Super Bowl Finished"]
[]
["Post-Season"]

{"sheet":"Schedule","index":3,"n_rows":288,"n_cols":6,"rows_kept":288,"cut":false,"hidden":false,"merged":[[0,0,0,5]]}
["Game Schedule"]
[]
["Week ","Visitor","H2H/Sub","Home","H2H/Sub","Comments"]
[1,"Cincinnati","H2H","Pittsburgh","H2H"]
[1,"Baltimore","H2H","Jacksonville","H2H"]
[1,"Tennessee","H2H","Dallas","H2H"]
[1,"Kansas City","H2H","Houston","H2H"]
[1,"Oakland","H2H","Denver","H2H"]
[1,"San Diego","H2H","Green Bay","H2H"]
[1,"New England","H2H","Indianapolis","H2H"]
[1,"Miami","H2H","New York (A)","H2H"]
[1,"Buffalo","H2H","Carolina","sub IND"]
[1,"Washington","H2H","Arizona","H2H"]
[1,"Philadelphia","H2H","New York (N)","H2H"]
[1,"Detroit","sub IND","Tampa Bay","H2H"]
[1,"Chicago","H2H","Minnesota","H2H"]
[1,"Atlanta","sim","San Francisco","sim"]
[1,"St. Louis","H2H","New Orleans","H2H"]
[]
[]
["Week ","Visitor","H2H/Sub","Home","H2H/Sub","Comments"]
[2,"Pittsburgh","H2H","Dallas","H2H"]
[2,"Tennessee","H2H","Washington","H2H"]
[2,"Kansas City","H2H","Indianapolis","H2H"]
[2,"Houston","H2H","New York (A)","H2H"]
[2,"Oakland","H2H","New England","H2H"]
[2,"Denver","H2H","Buffalo","H2H"]
[2,"San Diego","H2H","Miami","H2H"]
[2,"New York (N)","H2H","Baltimore","H2H"]
[2,"Arizona","H2H","Cincinnati","H2H"]
[2,"Philadelphia","H2H","Jacksonville","H2H"]
[2,"Tampa Bay","sub CIN","Atlanta","H2H"]
[2,"New Orleans","H2H","Minnesota","H2H"]
[2,"San Francisco","H2H","Detroit","H2H"]
[2,"Carolina","H2H","Green Bay","H2H"]
[2,"St. Louis","H2H","Chicago","H2H"]
[]
[]
["Week ","Visitor","H2H/Sub","Home","H2H/Sub","Comments"]
[3,"Cincinnati","H2H","Baltimore","sub TEN"]
[3,"Pittsburgh","H2H","Tennessee","H2H"]
[3,"Jacksonville","H2H","New York (N)","H2H"]
[3,"Kansas City","H2H","Oakland","H2H"]
[3,"Houston","H2H","San Diego","H2H"]
[3,"Denver","sub GB","Minnesota","H2H"]
[3,"New England","H2H","Miami","H2H"]
[3,"Indianapolis","H2H","Buffalo","H2H"]
[3,"New York (A)","H2H","New Orleans","H2H"]
[3,"Washington","H2H","Dallas","H2H"]
[3,"Philadelphia","H2H","Arizona","H2H"]
[3,"Tampa Bay","H2H","Green Bay","H2H"]
[3,"Detroit","H2H","Chicago","sub ATL"]
[3,"Atlanta","H2H","Carolina","H2H"]
[3,"San Francisco","sub WAS","St. Louis","sub ARI"]
[]
[]
["Week ","Visitor","H2H/Sub","Home","H2H/Sub","Comments"]
[4,"Baltimore","sub ATL","Pittsburgh","H2H"]
[4,"Jacksonville","H2H","Tennessee","H2H"]
[4,"Oakland","H2H","Houston","H2H"]
[4,"Denver","H2H","San Diego","H2H"]
[4,"Miami","H2H","Indianapolis","H2H"]
[4,"New York (A)","H2H","Buffalo","H2H"]
[4,"New York (N)","H2H","Philadelphia","H2H"]
[4,"Arizona","H2H","Washington","H2H"]
[4,"Dallas","H2H","Cincinnati","H2H"]
[4,"Tampa Bay","sub CIN","Detroit","H2H"]
[4,"Minnesota","H2H","Chicago","H2H"]
[4,"Green Bay","H2H","Kansas City","H2H"]
[4,"New Orleans","H2H","St. Louis","sub WAS"]
[4,"San Francisco","sub IND","Atlanta","H2H"]
[4,"Carolina","H2H","New England","H2H"]
[]
[]
["Week ","Visitor","H2H/Sub","Home","H2H/Sub","Comments"]
[5,"Cincinnati","H2H","Jacksonville","H2H"]
[5,"Pittsburgh","H2H","Arizona","H2H"]
[5,"Tennessee","H2H","Baltimore","sub ATL"]
[5,"Houston","H2H","Detroit","H2H"]
[5,"Denver","H2H","Kansas City","H2H"]
[5,"San Diego","sub MIA","Oakland","H2H"]
[5,"New England","H2H","New York (A)","H2H"]
[5,"Indianapolis","H2H","San Francisco","H2H"]
[5,"Buffalo","sub WAS","Miami","H2H"]
[5,"Washington","H2H","Philadelphia","H2H"]
[5,"Dallas","H2H","New York (N)","H2H"]
[5,"Minnesota","H2H","Green Bay","H2H"]
[5,"Chicago","H2H","Tampa Bay","H2H"]
[5,"Carolina","sub SF","New Orleans","H2H"]
[5,"St. Louis","H2H","Atlanta","H2H"]
[]
[]
["Week ","Visitor","H2H/Sub","Home","H2H/Sub","Comments"]
[6,"Baltimore","sub SF","Philadelphia","H2H"]
[6,"Jacksonville","H2H","Pittsburgh","H2H"]
[6,"Tennessee","H2H","Cincinnati","H2H"]
[6,"Kansas City","H2H","San Diego","H2H"]
[6,"Houston","H2H","Denver","H2H"]
[6,"Oakland","H2H","Chicago","sub CIN"]
[6,"Miami","H2H","St. Louis","H2H"]
[6,"New York (A)","H2H","Indianapolis","H2H"]
[6,"Buffalo","H2H","New England","H2H"]
[6,"New York (N)","H2H","Washington","H2H"]
[6,"Arizona","H2H","Dallas","H2H"]
[6,"Tampa Bay","sub CIN","Minnesota","H2H"]
[6,"Green Bay","H2H","Detroit","H2H"]
[6,"Atlanta","H2H","New Orleans","H2H"]
[6,"San Francisco","H2H","Carolina","H2H"]
[]
[]
["Week ","Visitor","H2H/Sub","Home","H2H/Sub","Comments"]
[7,"Cincinnati","H2H","New York (N)","H2H"]
[7,"Kansas City","H2H","New England","H2H"]
[7,"Indianapolis","H2H","Houston","H2H"]
[7,"Miami","H2H","Oakland","H2H"]
[7,"New York (A)","H2H","Denver","H2H"]
[7,"Buffalo","sim","San Diego","sim"]
[7,"Washington","H2H","Jacksonville","H2H"]
[7,"Arizona","H2H","Tennessee","H2H"]
[7,"Dallas ","H2H","Baltimore","H2H"]
[7,"Philadelphia","H2H","Pittsburgh","H2H"]
[7,"Tampa Bay","H2H","New Orleans","H2H"]
[7,"Minnesota","H2H","Carolina","H2H"]
[7,"Detroit","H2H","Atlanta","H2H"]
[7,"Green Bay","H2H","St. Louis","H2H"]
[7,"Chicago","sub CIN","San Francisco","H2H"]
[]
[]
["Week ","Visitor","H2H/Sub","Home","H2H/Sub","Comments"]
[8,"Pittsburgh","H2H","Cincinnati","H2H"]
[8,"Jacksonville","H2H","Baltimore","H2H"]
[8,"Houston","H2H","Kansas City","H2H"]
[8,"Denver","H2H","Oakland","H2H"]
[8,"Indianapolis","H2H","New England","H2H"]
[8,"New York (A)","sub SF","Miami","H2H"]
[8,"New York (N)","H2H","Tennessee","H2H"]
[8,"Arizona","H2H","Philadelphia","H2H"]
[8,"Dallas","H2H","Washington","H2H"]
[8,"Minnesota","H2H","San Diego","H2H"]
[8,"Green Bay","H2H","Tampa Bay","H2H"]
[8,"Chicago","sub CIN","Detroit","H2H"]
[8,"New Orleans","sim","Buffalo","sim"]
[8,"Carolina","H2H","Atlanta","H2H"]
[8,"St. Louis","H2H","San Francisco","H2H"]
[]
[]
["Week ","Visitor","H2H/Sub","Home","H2H/Sub","Comments"]
[9,"Baltimore",null,"Cincinnati"]
[9,"Jacksonville","H2H","Arizona","H2H"]
[9,"Tennessee",null,"Pittsburgh"]
[9,"Oakland","H2H","Kansas City","H2H"]
[9,"Denver",null,"Detroit"]
[9,"San Diego","H2H","Houston","H2H"]
[9,"Miami",null,"New England"]
[9,"New York (A)",null,"San Francisco"]
[9,"Buffalo",null,"Indianapolis"]
[9,"New York (N)",null,"Dallas"]
[9,"Philadelphia",null,"Washington"]
[9,"Tampa Bay",null,"Chicago"]
[9,"Green Bay",null,"Minnesota"]
[9,"Atlanta",null,"St. Louis"]
[9,"New Orleans",null,"Carolina"]
[]
[]
["Week ","Visitor","H2H/Sub","Home","H2H/Sub","Comments"]
[10,"Cincinnati",null,"Philadelphia"]
[10,"Pittsburgh",null,"Baltimore"]
[10,"Tennessee",null,"Jacksonville"]
[10,"Kansas City",null,"Chicago"]
[10,"Houston",null,"Oakland"]
[10,"San Diego",null,"Denver"]
[10,"New England",null,"St. Louis"]
[10,"Indianapolis",null,"Miami"]
[10,"Buffalo",null,"New York (A)"]
[10,"Washington",null,"New York (N)"]
[10,"Dallas ",null,"Arizona"]
[10,"Minnesota",null,"Tampa Bay"]
[10,"Detroit",null,"Green Bay"]
[10,"New Orleans",null,"Atlanta"]
[10,"Carolina",null,"San Francisco"]
[]
[]
["Week ","Visitor","H2H/Sub","Home","H2H/Sub","Comments"]
[11,"Cincinnati",null,"Kansas City"]
[11,"Houston",null,"Pittsburgh"]
[11,"Oakland",null,"Baltimore"]
[11,"Denver",null,"Jacksonville"]
[11,"San Diego",null,"Tennessee"]
[11,"New England",null,"New Orleans"]
[11,"Washington",null,"Tampa Bay"]
[11,"Minnesota",null,"New York (N)"]
[11,"Detroit",null,"Arizona"]
[11,"Green Bay",null,"Dallas"]
[11,"Chicago",null,"Philadelphia"]
[11,"Atlanta",null,"New York (A)"]
[11,"San Francisco",null,"Buffalo"]
[11,"Carolina",null,"Miami"]
[11,"St. Louis",null,"Indianapolis"]
[]
[]
["Week ","Visitor","H2H/Sub","Home","H2H/Sub","Comments"]
[12,"Baltimore",null,"Tennessee"]
[12,"Jacksonville",null,"Cincinnati"]
[12,"Kansas City",null,"Denver"]
[12,"Oakland",null,"San Diego"]
[12,"Miami",null,"Buffalo"]
[12,"New York (A)",null,"New England"]
[12,"Washington",null,"Pittsburgh"]
[12,"Arizona",null,"New York (N)"]
[12,"Philadelphia",null,"Dallas"]
[12,"Tampa Bay",null,"Houston"]
[12,"Minnesota",null,"Detroit"]
[12,"Green Bay",null,"Chicago"]
[12,"Atlanta",null,"Indianapolis"]
[12,"New Orleans",null,"San Francisco"]
[12,"Carolina",null,"St. Louis"]
[]
[]
["Week ","Visitor","H2H/Sub","Home","H2H/Sub","Comments"]
[13,"Cincinnati",null,"Houston"]
[13,"Pittsburgh",null,"Denver"]
[13,"Baltimore",null,"Kansas City"]
[13,"Jacksonville",null,"San Diego"]
[13,"Tennessee",null,"Oakland"]
[13,"Indianapolis",null,"Carolina"]
[13,"Buffalo",null,"Atlanta"]
[13,"Washington",null,"Minnesota"]
[13,"New York (N)",null,"Green Bay"]
[13,"Arizona",null,"Tampa Bay"]
[13,"Dallas",null,"Chicago"]
[13,"Philadelphia",null,"Detroit"]
[13,"New Orleans",null,"Miami"]
[13,"San Francisco",null,"New England"]
[13,"St. Louis",null,"New York (A)"]
[]
[]
["Week ","Visitor","H2H/Sub","Home","H2H/Sub","Comments"]
[14,"Houston",null,"Green Bay"]
[14,"San Diego",null,"Tampa Bay"]
[14,"New England",null,"Pittsburgh"]
[14,"Indianapolis",null,"Jacksonville"]
[14,"Miami",null,"Cincinnati"]
[14,"New York (A)",null,"Tennessee"]
[14,"Buffalo",null,"Baltimore"]
[14,"Minnesota",null,"Oakland"]
[14,"Detroit",null,"Kansas City"]
[14,"Chicago",null,"Denver"]
[14,"Atlanta",null,"New York (N)"]
[14,"New Orleans",null,"Dallas"]
[14,"San Francisco",null,"Washington"]
[14,"Carolina",null,"Philadelphia"]
[14,"St. Louis",null,"Arizona"]
[]
[]
["Week ","Visitor","H2H/Sub","Home","H2H/Sub","Comments"]
[15,"Cincinnati",null,"Tennessee"]
[15,"Pittsburgh",null,"Jacksonville"]
[15,"Baltimore",null,"Washington"]
[15,"Oakland",null,"Tampa Bay"]
[15,"Denver",null,"Houston"]
[15,"San Diego",null,"Kansas City"]
[15,"New England",null,"Buffalo"]
[15,"Indianapolis",null,"New York (A)"]
[15,"Miami",null,"Atlanta"]
[15,"New York (N)",null,"Arizona"]
[15,"Dallas",null,"Philadelphia"]
[15,"Detroit",null,"Minnesota"]
[15,"Chicago",null,"Green Bay"]
[15,"San Francisco",null,"New Orleans"]
[15,"St. Louis",null,"Carolina"]
[]
[]
["Week ","Visitor","H2H/Sub","Home","H2H/Sub","Comments"]
[16,"New England",null,"Cincinnati"]
[16,"Pittsburgh",null,"Indianapolis"]
[16,"Baltimore",null,"Miami"]
[16,"Jacksonville",null,"New York (A)"]
[16,"Tennessee",null,"Buffalo"]
[16,"Kansas City",null,"Minnesota"]
[16,"Atlanta",null,"Washington"]
[16,"New York (N)",null,"New Orleans"]
[16,"Arizona",null,"San Francisco"]
[16,"Dallas",null,"Carolina"]
[16,"Philadelphia",null,"St. Louis"]
[16,"Tampa Bay",null,"Denver"]
[16,"Detroit",null,"San Diego"]
[16,"Green Bay",null,"Oakland"]
[16,"Chicago",null,"Houston"]

{"sheet":"File Receipts","index":4,"n_rows":35,"n_cols":18,"rows_kept":35,"cut":false,"hidden":false,"merged":[[0,0,0,17]]}
["File Receipts"]
[]
["Team","Week 1","Week 2","Week 3","Week 4","Week 5","Week 6","Week 7","Week 8","Week 9","Week 10","Week 11","Week 12","Week 13","Week 14","Week 15","Week 16","Total"]
["Arizona","H2H","H2H","H2H","H2H","H2H","H2H","H2H","H2H","H2H",null,null,null,null,null,null,null,{"$f":"+COUNTIF(B4:Q4,\"H2H\")","v":9}]
["Atlanta","sim","H2H","H2H","H2H","H2H","H2H","H2H","H2H",null,null,null,null,null,null,null,null,{"$f":"+COUNTIF(B5:Q5,\"H2H\")","v":7}]
["Baltimore","H2H","H2H","sub TEN","sub ATL","sub ATL","sub SF","H2H","H2H",null,null,null,null,null,null,null,null,4]
["Buffalo","H2H","H2H","H2H","H2H","sub WAS","H2H","sim","sim",null,null,null,null,null,null,null,null,5]
["Carolina","sub IND","H2H","H2H","H2H","sub SF","H2H","H2H","H2H",null,null,null,null,null,null,null,null,6]
["Chicago","H2H","H2H","sub ATL","H2H","H2H","sub CIN","sub CIN","sub CIN",null,null,null,null,null,null,null,null,4]
["Cincinnati","H2H","H2H","H2H","H2H","H2H","H2H","H2H","H2H",null,null,null,null,null,null,null,null,8]
["Dallas","H2H","H2H","H2H","H2H","H2H","H2H","H2H","H2H",null,null,null,null,null,null,null,null,8]
["Denver","H2H","H2H","sub GB","H2H","H2H","H2H","H2H","H2H",null,null,null,null,null,null,null,null,7]
["Detroit","sub IND","H2H","H2H","H2H","H2H","H2H","H2H","H2H",null,null,null,null,null,null,null,null,7]
["Green Bay","H2H","H2H","H2H","H2H","H2H","H2H","H2H","H2H",null,null,null,null,null,null,null,null,8]
["Houston","H2H","H2H","H2H","H2H","H2H","H2H","H2H","H2H","H2H",null,null,null,null,null,null,null,9]
["Indianapolis","H2H","H2H","H2H","H2H","H2H","H2H","H2H","H2H",null,null,null,null,null,null,null,null,8]
["Jacksonville","H2H","H2H","H2H","H2H","H2H","H2H","H2H","H2H","H2H",null,null,null,null,null,null,null,9]
["Kansas City","H2H","H2H","H2H","H2H","H2H","H2H","H2H","H2H","H2H",null,null,null,null,null,null,null,9]
["Miami","H2H","H2H","H2H","H2H","H2H","H2H","H2H","H2H",null,null,null,null,null,null,null,null,8]
["Minnesota","H2H","H2H","H2H","H2H","H2H","H2H","H2H","H2H",null,null,null,null,null,null,null,null,8]
["New England","H2H","H2H","H2H","H2H","H2H","H2H","H2H","H2H",null,null,null,null,null,null,null,null,8]
["New York (A)","H2H","H2H","H2H","H2H","H2H","H2H","H2H","sub SF",null,null,null,null,null,null,null,null,7]
["New York (N)","H2H","H2H","H2H","H2H","H2H","H2H","H2H","H2H",null,null,null,null,null,null,null,null,8]
["New Orleans","H2H","H2H","H2H","H2H","H2H","H2H","H2H","sim",null,null,null,null,null,null,null,null,7]
["Oakland","H2H","H2H","H2H","H2H","H2H","H2H","H2H","H2H","H2H",null,null,null,null,null,null,null,9]
["Philadelphia","H2H","H2H","H2H","H2H","H2H","H2H","H2H","H2H",null,null,null,null,null,null,null,null,8]
["Pittsburgh","H2H","H2H","H2H","H2H","H2H","H2H","H2H","H2H",null,null,null,null,null,null,null,null,8]
["St. Louis","H2H","H2H","sub WAS","sub WAS","H2H","H2H","H2H","H2H",null,null,null,null,null,null,null,null,6]
["San Diego","H2H","H2H","H2H","H2H","sub MIA","H2H","sim","H2H","H2H",null,null,null,null,null,null,null,7]
["San Francisco","sim","H2H","sub ARI","sub IND","H2H","H2H","H2H","H2H",null,null,null,null,null,null,null,null,5]
["Tampa Bay","H2H","sub CIN","H2H","sub CIN","H2H","sub CIN","H2H","H2H",null,null,null,null,null,null,null,null,5]
["Tennessee","H2H","H2H","H2H","H2H","H2H","H2H","H2H","H2H",null,null,null,null,null,null,null,null,8]
["Washington","H2H","H2H","H2H","H2H","H2H","H2H","H2H","H2H",null,null,null,null,null,null,null,null,8]
[]
["TOTALS",{"$f":"+COUNTIF(B4:B33,\"H2H\")/30","v":0.8666666666666667},{"$f":"+COUNTIF(C4:C33,\"H2H\")/30","v":0.96666666666666667},0.83333333333333337,0.8666666666666667,0.8666666666666667,0.9,0.9,0.8666666666666667,0.2,0,0,0,0,0,0,0,{"$f":"SUM(R4:R33)","v":218}]

{"sheet":"2013 Draft","index":5,"n_rows":33,"n_cols":7,"rows_kept":33,"cut":false,"hidden":false,"merged":[[0,0,0,2]]}
["2013 Draft Order"]
[]
["Pick","Team","Record","2008-09-08","SOS"]
[1,"San Diego","1-15"]
[2,"St. Louis","2-14"]
[3,"Carolina","3-13"]
[4,"Buffalo","4-12",null,0.48399999999999999]
[5,"Denver","4-12",null,0.50800000000000001]
[6,"Tennessee","5-11",null,0.50800000000000001]
[7,"Jacksonville","5-11",null,0.56299999999999994]
[8,"New York (A)","6-10",null,0.41799999999999998]
[9,"Miami","6-10",null,0.434]
[10,"Chicago","6-10",null,0.45300000000000001]
[11,"Green Bay","6-10",null,0.45700000000000002]
[12,"Indianapolis","6-10",null,0.46100000000000002]
[13,"Detroit","6-10",null,0.48799999999999999]
[14,"Oakland","6-10",null,0.52300000000000002]
[15,"Philadelphia","6-10",null,0.59799999999999998]
[16,"Minnesota","7-9"]
[17,"Dallas","8-8"]
[18,"San Francisco","9-7"]
[19,"Baltimore","7-9",null,"playoffs",null,"eliminated wildcard round"]
[20,"Tampa Bay","10-6",null,0.46500000000000002,null,"eliminated wildcard round"]
[21,"Houston","10-6",null,0.48,null,"eliminated wildcard round"]
[22,"New York (N)","14-2",null,"playoffs",null,"eliminated wildcard round"]
[23,"Pittsburgh","10-6",null,"playoffs",null,"eliminated divisional round"]
[24,"Arizona","11-5",null,"playoffs",null,"eliminated divisional round"]
[25,"New England","13-3",null,0.438,null,"eliminated divisional round"]
[26,"New Orleans","13-3",null,0.52,null,"eliminated divisional round"]
[27,"Kansas City","13-3",null,0.44500000000000001,null,"Conference Champion Participant"]
[28,"Atlanta","13-3",null,0.46899999999999997,null,"Conference Champion Participant"]
[29,"Cincinnati","15-1",null,"Runner-up"]
[30,"Washington","15-1",null,"Champion"]

{"sheet":"2013 Draft Picks","index":6,"n_rows":33,"n_cols":12,"rows_kept":33,"cut":false,"hidden":false,"merged":[[0,0,0,11]]}
["2012 Draft Picks"]
[]
["Pos","Team",1,2,3,4,5,6,7,8,9,10]
[1,"San Diego"]
[2,"St. Louis"]
[3,"Carolina"]
[4,"Buffalo"]
[5,"Denver"]
[6,"Tennessee"]
[7,"Jacksonville"]
[8,"New York (A)"]
[9,"Miami"]
[10,"Chicago"]
[11,"Green Bay"]
[12,"Indianapolis"]
[13,"Detroit"]
[14,"Oakland"]
[15,"Philadelphia"]
[16,"Minnesota"]
[17,"Dallas"]
[18,"San Francisco"]
[19,"Baltimore"]
[20,"Tampa Bay"]
[21,"Houston"]
[22,"New York (N)"]
[23,"Pittsburgh"]
[24,"Arizona"]
[25,"New England"]
[26,"New Orleans"]
[27,"Kansas City"]
[28,"Atlanta"]
[29,"Cincinnati"]
[30,"Washington"]

{"sheet":"Tie Breakers","index":7,"n_rows":197,"n_cols":56,"rows_kept":197,"cut":false,"hidden":false,"merged":[[23,43,23,48],[23,50,23,55],[98,1,98,6],[98,8,98,13],[23,1,23,6],[23,8,23,13],[23,15,23,20],[23,22,23,27],[23,29,23,34],[23,36,23,41],[150,1,150,6],[150,8,150,13],[176,1,176,6],[176,8,176,13],[48,1,48,6],[48,8,48,13],[73,1,73,6],[73,8,73,13],[124,1,124,6],[124,8,124,13]]}
[]
[]
["The draft order is determined by the following procedures:"]
[]
["(A) The winner of the Super Bowl will select last and the other Super Bowl participant next-to-last, regardless of their regular-season record."]
[]
["(B) The Championship Game participants not advancing to the Super Bowl will select 29th and 30th, according to the reverse order of their standing."]
[]
["(C) The Divisional Playoff participants not advancing to the Championship Games will select 25th through 28th, according to the reverse order of their standing."]
[]
["(D) The Wild Card participants not advancing to the Divisional Playoffs will select 21st through 24th, according to the reverse order of their standing."]
[]
["(E) Non-playoff clubs will select first through 20th, according to the reverse order of their standing."]
[]
["If ties exist in any grouping except (A) above, they will be broken by strength of schedule (i.e., figuring the aggregate won-lost-tied percentage of each involved club’s regular-season opponents and awarding preferential selection order to the club which faced the schedule of teams with the lowest aggregate won-lost-tied percentage)."]
[]
["If ties still exist after applying the strength of schedule tiebreaker, the divisional or conference tiebreakers are applied, if applicable. If the divisional or conference tiebreakers are not applicable, ties will be broken by a coin flip."]
[]
["Clubs involved in two-club ties will alternate positions from round-to-round. In ties that involve three or more clubs, the club at the top of a tied segment in a given round will move to the bottom of the segment for the next round, while all other clubs in the segment move up one position. This rotation continues throughout the draft."]
[]
[]
[]
[]
[null,"Philadelphia",null,null,null,null,null,null,"Chicago",null,null,null,null,null,null,"Detroit",null,null,null,null,null,null,"Green Bay",null,null,null,null,null,null,"Indianapolis",null,null,null,null,null,null,"Miami",null,null,null,null,null,null,"New York (A)",null,null,null,null,null,null,"Oakland"]
[]
[null,"Week ","Opponent","W","L","T",null,null,"Week ","Opponent","W","L","T",null,null,"Week ","Opponent","W","L","T",null,null,"Week ","Opponent","W","L","T",null,null,"Week ","Opponent","W","L","T",null,null,"Week ","Opponent","W","L","T",null,null,"Week ","Opponent","W","L","T",null,null,"Week ","Opponent","W","L","T"]
[null,1,"Denver",4,12,null,null,null,1,"Indianapolis",6,10,null,null,null,1,"Tampa Bay",10,6,null,null,null,1,"@Minnesota",7,9,null,null,null,1,"@Chicago",6,10,null,null,null,1,"@New York (A)",6,10,null,null,null,1,"Miami",6,10,null,null,null,1,"Kansas City",13,3]
[null,2,"Oakland",6,10,null,null,null,2,"New Orleans",13,3,null,null,null,2,"Carolina",3,13,null,null,null,2,"St. Louis",2,14,null,null,null,2,"@Baltimore",7,9,null,null,null,2,"@Jacksonville",5,11,null,null,null,2,"@Pittsburgh",10,6,null,null,null,2,"@Philadelphia",6,10]
[null,3,"@Arizona",11,5,null,null,null,3,"@Tampa Bay",10,6,null,null,null,3,"Minnesota",7,9,null,null,null,3,"Miami",6,10,null,null,null,3,"@New England",13,3,null,null,null,3,"@Green Bay",6,10,null,null,null,3,"@Buffalo",4,12,null,null,null,3,"Denver",4,12]
[null,4,"@Dallas",8,8,null,null,null,4,"@Green Bay",6,10,null,null,null,4,"@Indianapolis",6,10,null,null,null,4,"Chicago",6,10,null,null,null,4,"Detroit",6,10,null,null,null,4,"New York (A)",6,10,null,null,null,4,"@Miami",6,10,null,null,null,4,"@Kansas City",13,3]
[null,5,"New York (N)",14,2,null,null,null,5,"Minnesota",7,9,null,null,null,5,"@Green Bay",6,10,null,null,null,5,"Detroit",6,10,null,null,null,5,"@Miami",6,10,null,null,null,5,"Indianapolis",6,10,null,null,null,5,"New England",13,3,null,null,null,5,"San Diego",1,15]
[null,6,"Washiington",15,1,null,null,null,6,"@Detroit",6,10,null,null,null,6,"Chicago",6,10,null,null,null,6,"@Tampa Bay",10,6,null,null,null,6,"Buffalo",4,12,null,null,null,6,"@New England",13,3,null,null,null,6,"@Minnesota",7,9,null,null,null,6,"@Houston",10,6]
[null,7,"@Kansas City",13,3,null,null,null,7,"@St. Louis",2,14,null,null,null,7,"Atlanta",13,3,null,null,null,7,"@San Francisco",9,7,null,null,null,7,"Pittsburgh",10,6,null,null,null,7,"Baltimore",7,9,null,null,null,7,"Tennessee",5,11,null,null,null,7,"Dallas",8,8]
[null,8,"@Houston",10,6,null,null,null,8,"@Miami",6,10,null,null,null,8,"@Tampa Bay",10,6,null,null,null,8,"Minnesota",7,9,null,null,null,8,"New England",13,3,null,null,null,8,"Chicago",6,10,null,null,null,8,"Buffalo",4,12,null,null,null,8,"@Denver",4,12]
[null,9,"Arizona",11,5,null,null,null,9,"Tampa Bay",10,6,null,null,null,9,"@Minnesota",7,9,null,null,null,9,"Buffalo",4,12,null,null,null,9,"Miami",6,10,null,null,null,9,"@Indianapolis",6,10,null,null,null,9,"@New England",13,3,null,null,null,9,"@San Diego",1,15]
[null,10,"Dallas",8,8,null,null,null,10,"Green Bay",6,10,null,null,null,10,"New York (A)",6,10,null,null,null,10,"@Chicago",6,10,null,null,null,10,"@Buffalo",4,12,null,null,null,10,"New England",13,3,null,null,null,10,"@Detroit",6,10,null,null,null,10,"Houston",10,6]
[null,11,"@Chicago",6,10,null,null,null,11,"Philadelphia",6,10,null,null,null,11,"@Washington",15,1,null,null,null,11,"Dallas",8,8,null,null,null,11,"Denver",4,12,null,null,null,11,"Houston",10,6,null,null,null,11,"San Diego",1,15,null,null,null,11,"New England",13,3]
[null,12,"@New York (N)",14,2,null,null,null,12,"@Minnesota",7,9,null,null,null,12,"Green Bay",6,10,null,null,null,12,"@Detroit",6,10,null,null,null,12,"New York (A)",6,10,null,null,null,12,"Buffalo",4,12,null,null,null,12,"@Indianapolis",6,10,null,null,null,12,"Arizona",11,5]
[null,13,"Minnesota",7,9,null,null,null,13,"@Dallas",8,8,null,null,null,13,"@New York (N)",14,2,null,null,null,13,"@Arizona",11,5,null,null,null,13,"@Houston",10,6,null,null,null,13,"@Oakland",6,10,null,null,null,13,"@Denver",4,12,null,null,null,13,"Miami",6,10]
[null,14,"@San Francisco",9,7,null,null,null,14,"New England",13,3,null,null,null,14,"@Buffalo",4,12,null,null,null,14,"@New York (A)",6,10,null,null,null,14,"@Tampa Bay",10,6,null,null,null,14,"Minnesota",7,9,null,null,null,14,"Green Bay",6,10,null,null,null,14,"@Tennessee",5,11]
[null,15,"@Washington",15,1,null,null,null,15,"Detroit",6,10,null,null,null,15,"@Chicago",6,10,null,null,null,15,"Tampa Bay",10,6,null,null,null,15,"@New York (A)",6,10,null,null,null,15,"@Buffalo",4,12,null,null,null,15,"Indianapolis",6,10,null,null,null,15,"@New York (N)",14,2]
[null,16,"St. Louis",2,14,null,null,null,16,"@Buffalo",4,12,null,null,null,16,"Miami",6,10,null,null,null,16,"@New England",13,3,null,null,null,16,"Minnesota",7,9,null,null,null,16,"@Detroit",6,10,null,null,null,16,"Tampa Bay",10,6,null,null,null,16,"@Cincinnati",15,1]
[null,null,null,null,null,null,"PCT",null,null,null,null,null,null,"PCT",null,null,null,null,null,null,"PCT",null,null,null,null,null,null,"PCT",null,null,null,null,null,null,"PCT",null,null,null,null,null,null,"PCT",null,null,null,null,null,null,"PCT",null,null,null,null,null,null,"PCT"]
[null,null,"Total",{"$f":"SUM(D27:D43)","v":153},{"$f":"SUM(E27:E43)","v":103},{"$f":"SUM(F27:F43)","v":0},{"$f":"D44/256","v":0.59765625},null,null,"Total",{"$f":"SUM(K27:K43)","v":116},{"$f":"SUM(L27:L43)","v":140},{"$f":"SUM(M27:M43)","v":0},{"$f":"K44/256","v":0.453125},null,null,"Total",{"$f":"SUM(R27:R43)","v":125},{"$f":"SUM(S27:S43)","v":131},{"$f":"SUM(T27:T43)","v":0},{"$f":"R44/256","v":0.48828125},null,null,"Total",{"$f":"SUM(Y27:Y43)","v":117},{"$f":"SUM(Z27:Z43)","v":139},{"$f":"SUM(AA27:AA43)","v":0},{"$f":"Y44/256","v":0.45703125},null,null,"Total",{"$f":"SUM(AF27:AF43)","v":118},{"$f":"SUM(AG27:AG43)","v":138},{"$f":"SUM(AH27:AH43)","v":0},{"$f":"AF44/256","v":0.4609375},null,null,"Total",{"$f":"SUM(AM27:AM43)","v":111},{"$f":"SUM(AN27:AN43)","v":145},{"$f":"SUM(AO27:AO43)","v":0},{"$f":"AM44/256","v":0.43359375},null,null,"Total",{"$f":"SUM(AT27:AT43)","v":107},{"$f":"SUM(AU27:AU43)","v":149},{"$f":"SUM(AV27:AV43)","v":0},{"$f":"AT44/256","v":0.41796875},null,null,"Total",{"$f":"SUM(BA27:BA43)","v":134},{"$f":"SUM(BB27:BB43)","v":122},{"$f":"SUM(BC27:BC43)","v":0},{"$f":"BA44/256","v":0.5234375}]
[]
[]
[]
[]
[]
[]
[null,"Week ","Opponent","W","L","T",null,null,"Week ","Opponent","W","L","T"]
[null,1,null,null,null,null,null,null,1]
[null,2,null,null,null,null,null,null,2]
[null,3,null,null,null,null,null,null,3]
[null,4,null,null,null,null,null,null,4]
[null,5,null,null,null,null,null,null,5]
[null,6,null,null,null,null,null,null,6]
[null,7,null,null,null,null,null,null,7]
[null,8,null,null,null,null,null,null,8]
[null,9,null,null,null,null,null,null,9]
[null,10,null,null,null,null,null,null,10]
[null,11,null,null,null,null,null,null,11]
[null,12,null,null,null,null,null,null,12]
[null,13,null,null,null,null,null,null,13]
[null,14,null,null,null,null,null,null,14]
[null,15,null,null,null,null,null,null,15]
[null,16,null,null,null,null,null,null,16]
[null,null,null,null,null,null,"PCT",null,null,null,null,null,null,"PCT"]
[null,null,"Total",{"$f":"SUM(D52:D68)","v":0},{"$f":"SUM(E52:E68)","v":0},{"$f":"SUM(F52:F68)","v":0},{"$f":"D69/256","v":0},null,null,"Total",{"$f":"SUM(K52:K68)","v":0},{"$f":"SUM(L52:L68)","v":0},{"$f":"SUM(M52:M68)","v":0},{"$f":"K69/256","v":0}]
[]
[]
[]
[]
[null,"Kansas City",null,null,null,null,null,null,"Atlanta"]
[]
[null,"Week ","Opponent","W","L","T",null,null,"Week ","Opponent","W","L","T"]
[null,1,"@Oakland",6,10,null,null,null,1,"Carolina",3,13]
[null,2,"Washiington",15,1,null,null,null,2,"@Minnesota",7,9]
[null,3,"@San Diego",1,15,null,null,null,3,"New Orleans",13,3]
[null,4,"Oakland",6,10,null,null,null,4,"@Baltimore",7,9]
[null,5,"@Arizona",11,5,null,null,null,5,"San Francisco",9,7]
[null,6,"Denver",4,12,null,null,null,6,"@St. Louis",2,14]
[null,7,"Philadelphia",6,10,null,null,null,7,"@Detroit",6,10]
[null,8,"San Diego",1,15,null,null,null,8,"@Carolina",3,13]
[null,9,"@Dallas",8,8,null,null,null,9,"@New Orleans",13,3]
[null,10,"@Denver",4,12,null,null,null,10,"Pittsburgh",10,6]
[null,11,"@Buffalo",4,12,null,null,null,11,"Jacksonville",5,11]
[null,12,"Houston",10,6,null,null,null,12,"@San Francisco",9,7]
[null,13,"New England",13,3,null,null,null,13,"@Tennessee",5,11]
[null,14,"@Pittsburgh",10,6,null,null,null,14,"Arizona",11,5]
[null,15,"@Houston",10,6,null,null,null,15,"St. Louis",2,14]
[null,16,"Tennessee",5,11,null,null,null,16,"Washington",15,1]
[null,null,null,null,null,null,"PCT",null,null,null,null,null,null,"PCT"]
[null,null,"Total",{"$f":"SUM(D77:D93)","v":114},{"$f":"SUM(E77:E93)","v":142},{"$f":"SUM(F77:F93)","v":0},{"$f":"D94/256","v":0.4453125},null,null,"Total",{"$f":"SUM(K77:K93)","v":120},{"$f":"SUM(L77:L93)","v":136},{"$f":"SUM(M77:M93)","v":0},{"$f":"K94/256","v":0.46875}]
[]
[]
[]
[]
[null,"New England",null,null,null,null,null,null,"New Orleans"]
[]
[null,"Week ","Opponent","W","L","T",null,null,"Week ","Opponent","W","L","T"]
[null,1,"@Buffalo",4,12,null,null,null,1,"San Francisco",9,7]
[null,2,"Cincinnati",15,1,null,null,null,2,"@Chicago",6,10]
[null,3,"Indianapolis",6,10,null,null,null,3,"@Atlanta",13,3]
[null,4,"Buffalo",4,12,null,null,null,4,"Carolina",3,13]
[null,5,"@New York (A)",6,10,null,null,null,5,"@St. Louis",2,14]
[null,6,"Miami",6,10,null,null,null,6,"Pittsburgh",10,6]
[null,7,"Jacksonville",5,11,null,null,null,7,"Minnesota",7,9]
[null,8,"@Indianapolis",6,10,null,null,null,8,"@San Francisco",9,7]
[null,9,"New York (A)",6,10,null,null,null,9,"Atlanta",13,3]
[null,10,"@Miami",6,10,null,null,null,10,"@Carolina",3,13]
[null,11,"@Oakland",6,10,null,null,null,11,"@Baltimore",7,9]
[null,12,"Tampa Bay",10,6,null,null,null,12,"St. Louis",2,14]
[null,13,"@Kansas City",13,3,null,null,null,13,"@Jacksonville",5,11]
[null,14,"@Chicago",6,10,null,null,null,14,"Washington",15,1]
[null,15,"@Minnesota",7,9,null,null,null,15,"Cincinnati",15,1]
[null,16,"Green Bay",6,10,null,null,null,16,"@New York (N)",14,2]
[null,null,null,null,null,null,"PCT",null,null,null,null,null,null,"PCT"]
[null,null,"Total",{"$f":"SUM(D102:D118)","v":112},{"$f":"SUM(E102:E118)","v":144},{"$f":"SUM(F102:F118)","v":0},{"$f":"D119/256","v":0.4375},null,null,"Total",{"$f":"SUM(K102:K118)","v":133},{"$f":"SUM(L102:L118)","v":123},{"$f":"SUM(M102:M118)","v":0},{"$f":"K119/256","v":0.51953125}]
[]
[]
[]
[]
[]
[null,"Houston",null,null,null,null,null,null,"Tampa Bay"]
[]
[null,"Week ","Opponent","W","L","T",null,null,"Week ","Opponent","W","L","T"]
[null,1,"@San Diego",1,15,null,null,null,1,"@Detroit",6,10]
[null,2,"New York (N)",14,2,null,null,null,2,"San Francisco",9,7]
[null,3,"@Dallas",8,8,null,null,null,3,"Chicago",6,10]
[null,4,"San Diego",1,15,null,null,null,4,"@Minnesota",7,9]
[null,5,"@Denver",4,12,null,null,null,5,"Buffalo",4,12]
[null,6,"Oakland",6,10,null,null,null,6,"Green Bay",6,10]
[null,7,"@Washington",15,1,null,null,null,7,"@Carolina",3,13]
[null,8,"Philadelphia",6,10,null,null,null,8,"Detroit",6,10]
[null,9,"Denver",4,12,null,null,null,9,"@Chicago",6,10]
[null,10,"@Oakland",6,10,null,null,null,10,"Minnesota",7,9]
[null,11,"@Miami",6,10,null,null,null,11,"Arizona",12,4]
[null,12,"@Kansas City",13,3,null,null,null,12,"@New England",14,2]
[null,13,"Indianapolis",6,10,null,null,null,13,"@Washington",15,1]
[null,14,"@Cincinnati",15,1,null,null,null,14,"Indianapolis",6,10]
[null,15,"Kansas City",13,3,null,null,null,15,"@Green Bay",6,10]
[null,16,"Jacksonville",5,11,null,null,null,16,"@New York (A)",6,10]
[null,null,null,null,null,null,"PCT",null,null,null,null,null,null,"PCT"]
[null,null,"Total",{"$f":"SUM(D128:D144)","v":123},{"$f":"SUM(E128:E144)","v":133},{"$f":"SUM(F128:F144)","v":0},{"$f":"D145/256","v":0.48046875},null,null,"Total",{"$f":"SUM(K128:K144)","v":119},{"$f":"SUM(L128:L144)","v":137},{"$f":"SUM(M128:M144)","v":0},{"$f":"K145/256","v":0.46484375}]
[]
[]
[]
[]
[]
[null,"Jacksonville",null,null,null,null,null,null,"Tennessee"]
[]
[null,"Week ","Opponent","W","L","T",null,null,"Week ","Opponent","W","L","T"]
[null,1,"@Pittsburgh",10,6,null,null,null,1,"@Cincinnati",15,1]
[null,2,"Miami",6,10,null,null,null,2,"Buffalo",4,12]
[null,3,"@San Francisco",9,7,null,null,null,3,"Pittsburgh",10,6]
[null,4,"Pittsburgh",10,6,null,null,null,4,"Cincinnati",15,1]
[null,5,"@Baltimore",7,9,null,null,null,5,"@Carolina",3,13]
[null,6,"@Cincinnati",15,1,null,null,null,6,"Baltimore",7,9]
[null,7,"@New England",13,3,null,null,null,7,"@New York(A)",6,10]
[null,8,"St. Louis",2,14,null,null,null,8,"@Pittsburgh",10,6]
[null,9,"Baltimore",7,9,null,null,null,9,"@San Francisco",9,7]
[null,10,"Cincinnati",15,1,null,null,null,10,"@Baltimore",7,9]
[null,11,"@Atlanta",13,3,null,null,null,11,"St. Louis",2,14]
[null,12,"Tennessee",5,11,null,null,null,12,"@Jacksonville",5,11]
[null,13,"New Orleans",13,3,null,null,null,13,"Atlanta",13,3]
[null,14,"Denver",4,12,null,null,null,14,"Oakland",6,10]
[null,15,"@Tennessee",5,11,null,null,null,15,"Jacksonville",5,11]
[null,16,"@Houston",10,6,null,null,null,16,"@Kansas City",13,3]
[null,null,null,null,null,null,"PCT",null,null,null,null,null,null,"PCT"]
[null,null,"Total",{"$f":"SUM(D154:D170)","v":144},{"$f":"SUM(E154:E170)","v":112},{"$f":"SUM(F154:F170)","v":0},{"$f":"D171/256","v":0.5625},null,null,"Total",{"$f":"SUM(K154:K170)","v":130},{"$f":"SUM(L154:L170)","v":126},{"$f":"SUM(M154:M170)","v":0},{"$f":"K171/256","v":0.5078125}]
[]
[]
[]
[]
[]
[null,"Buffalo",null,null,null,null,null,null,"Denver"]
[]
[null,"Week ","Opponent","W","L","T",null,null,"Week ","Opponent","W","L","T"]
[null,1,"New England",13,3,null,null,null,1,"@Philadelphia",6,10]
[null,2,"@Tennessee",5,11,null,null,null,2,"@Arizona",11,5]
[null,3,"New York (A)",6,10,null,null,null,3,"@Oakland",6,10]
[null,4,"@New England",13,3,null,null,null,4,"Washington",15,1]
[null,5,"@Tampa Bay",10,6,null,null,null,5,"Houston",10,6]
[null,6,"@Indianapolis",6,10,null,null,null,6,"@Kansas City",13,3]
[null,7,"Cincinnati",15,1,null,null,null,7,"New York (N)",14,2]
[null,8,"@New York (A)",6,10,null,null,null,8,"Oakland",6,10]
[null,9,"@Green Bay",6,10,null,null,null,9,"@Houston",10,6]
[null,10,"Indianapolis",6,10,null,null,null,10,"Kansas City",13,3]
[null,11,"Kansas City",13,3,null,null,null,11,"@Indianapolis",6,10]
[null,12,"@Miami",6,10,null,null,null,12,"@San Diego",1,15]
[null,13,"@San Diego",1,15,null,null,null,13,"New York (A)",6,10]
[null,14,"Detroit",6,10,null,null,null,14,"@Jacksonville",5,11]
[null,15,"Miami",6,10,null,null,null,15,"San Diego",1,15]
[null,16,"Chicago",6,10,null,null,null,16,"Baltimore",7,9]
[null,null,null,null,null,null,"PCT",null,null,null,null,null,null,"PCT"]
[null,null,"Total",{"$f":"SUM(D180:D196)","v":124},{"$f":"SUM(E180:E196)","v":132},{"$f":"SUM(F180:F196)","v":0},{"$f":"D197/256","v":0.484375},null,null,"Total",{"$f":"SUM(K180:K196)","v":130},{"$f":"SUM(L180:L196)","v":126},{"$f":"SUM(M180:M196)","v":0},{"$f":"K197/256","v":0.5078125}]

{"sheet":"Transactions","index":8,"n_rows":661,"n_cols":5,"rows_kept":661,"cut":false,"hidden":false,"merged":[[0,0,0,3]]}
["Transactions"]
["Date","TEAM #1","SEND","TEAM #2","FOR"]
[]
["2012 Transactions"]
["11-22-12 In-Season Transaction"]
["Redskins claim David Buehler PK and release Bryan Mattison C-G"]
[]
["11-14-12 In-Season Transaction"]
["Redskins claim Jerome Boyd SA and release Rian Lindell PK"]
[]
["11-7-12 In-Season Transaction"]
["Bears claim Colin Brown OC and release Scott Mruczkowski OC."]
[]
["11-3-12 In-Season Transaction"]
["Bears claim Artis Hicks OG, Demar Dotson OT, Jeremiah Johnson RB, and John Clay RB and release Jason Spitz C-G, Bruce Campbell G-T, Steve Slaton RB and Brandon Hogan CB."]
[]
["10-26-12 In-Season Transaction"]
["Dolphins claim Mark LeVoir OG and releases Mike Kafka QB."]
[]
["10-13-12 In-Season Transaction"]
["Packers claim Anthony Adams DT and releases Bob Sanders SA."]
[]
["10-8-12 Trade"]
["Packers trade Oshiomogho Atogwe SA, Sherrod Martin SA, and LaDainian Tomlinson RB to the Steelers for Reshad Jones SA, Quintin Demps SA, and Felix Jones RB."]
[]
["10-7-12 Trade"]
["Packers trade Frank Kearse DL to Bears for Craig Steltz DB."]
[]
["10-6-12 Trade"]
["Bengals trade Arthur Moats DE-LB to the Bears for Thomas Howard OLB."]
[]
["10-2-12 In-Season Transaction"]
["Falcons claim Josh Barrett SA and Sammie Stroughter WR and release Scott Paxson DT and Auston English DE."]
[]
["10-2-12 Trade"]
["Lions trades Bryan Dawkins SA, Davin Joseph OG, and Brian McCann, CB to the Patriots for Joe Berger C/G, Roman Harper SA, and Carlton Mitchell WR."]
[]
["10-2-12 In-Season Transaction"]
["Forty Niners claim Alex Smith TE and Byron Westbrook CB."]
[]
["10-1-12 Trade"]
["Forty Niners trade Dexter  McCluster RB, Brandon LaFell WR, and Quentin Jammer CB to the Bills for Stevie Johnson WR."]
[]
["10-1-12 In-Season Transaction"]
["Buccaneers claim Jimmy Wilson CB and release Jerome Murphy CB."]
[]
["9-29-12 Trade"]
["Packers trade Mark Herzlich OLB to Jaguars for Joey Porter OLB."]
[]
["9-22-12 In-Season Transaction"]
["Eagles claim Lorenzo Booker RB and release Chastin West WR."]
[]
["9-19-12 In-Season Transaction"]
["Redskins claim Bryan Mattison C-G and Ryan Lindell PK and release Mark Levoir G-T and Shawne Merriman DE-LB."]
[]
["9-16-12 In-Season Transaction"]
["Dolphins claim Mike Kafka QB and release Ron Bartell CB."]
[]
["9-14-12 In-Season Transaction"]
["Dolphins claim Benny Sapp CB and release Jeremiah Johnson RB."]
[]
["9-14-12 In-Season Transaction"]
["Redskins claim Shawne Merriman DE-LB and release Adrian Arrington WR."]
[]
["9-14-12 In-Season Transaction"]
["Colts claim Derrick Ward RB and release Alex Smith HB."]
[]
["9-8-12 Trade"]
["Saints trade Kendrick Lewis SA and Kevin Walter WR  to the Patriots for Nate Burleson WR and Abram Elam SA."]
[]
["9-6-12 In-Season Transaction"]
["Eagles claim Paul Oliver SA and release Bryan Mattison C-G"]
[]
["8-28-12 Trade"]
["Eagles trade Arthur Moats DE-LB to the Bengals for Da'Norris Searcy SA."]
[]
["8-28-12 In-Season Transaction"]
["Patriots claim Mike Williams WR and release Shawne Merriman DE-LB."]
[]
["8-27-12 In-Season Transaction"]
["Redskins claim Mark LeVoir OG and release Mike Kafka QB."]
[]
["8-15-12 Stat Package"]
["Giants release Tyrell Johnson SA to add Wide Receiver stat packages to DeMarco Sampson WR and Steve Smith WR.  ."]
[]
["8-15-12 Stat Package"]
["Rams release Ronald Field DT to add Wide Receiver stat package to Terrnace Copper WR and Dominique Curry WR.  Rams also add Return stat package to Ronnie Brown Ret and Lance Ball Ret.  Rams roster at required 50 players.."]
[]
["8-15-12 Stat Package"]
["Cardinals release Derrick Ward RB to add a Running Back stat package to Bilal Powell RB."]
[]
["8-15-12 Stat Package"]
["Panthers release Danny McCray SA and Bryant Johnson WR to add a Running Back stat package to Dane Fletcher and a Wide Receiver stat package to Danny Amendola WR."]
[]
["8-15-12 Stat Package"]
["Raiders release Brady Quinn QB to add a Return stat package to Perrish Cox Ret."]
[]
["8-15-12 Stat Package"]
["Jets release John Gilmore TE to add a Return stat package to Sabby Piscitelli Ret."]
[]
["8-14-12 Stat Package"]
["Chargers release Antonio Dixon DT and Mike Williams WR to add a Quarterback stat package to Tyrod Taylor QB and a Running Back stat package to Anthony Allen RB."]
[]
["8-14-12 Stat Package"]
["Eagles release Ovie Mughelli RB and Jerome Boyd SA to add  Wide Receiver stat packages to Donald Butler WR and David Gettis WR and a Returner stat package to Sam Hurd KR."]
[]
["8-14-12 Stat Package"]
["Jaguars release Lorenzo Booker RB and Sammie Stroughter WR to add a Wide Receiver stat packages to Emmanual Arceneaux WR and Anthony Armstrong WR and a Running Back stat package to Alfonso Smith RB."]
[]
["8-14-12 Stat Package"]
["Jets release Seth Olsen OG and are assigned Jimmy Claussen QB to meet league required minimum passing attempts. "]
["Jets release Josh Barrett SA to add Quarterback stat package to Jimmy Claussen QB. "]
[]
["8-14-12 Stat Package"]
["Bills release C.J. Spillman DB, Mark LeVoir G-T, and Cameron Morrah TE to add a Running Back stat package to Curtis Brinkley RB,  Wide Receiver stat packages to Brian Robiskie WR and  Chansi Stuckey WR and a Tight End stat package to Jim Dray HB."]
[]
["8-11-12 Stat Package"]
["Raiders release Cory Greenwood LB to add a WR stat packages to Jordan Shipley WR and Brandon Stokley WR."]
[]
["8-10-12 Stat Package"]
["Bengals release Ryan McBean DT to add a Running Back stat package to Alex Green RB."]
[]
["8-8-12 Stat Package"]
["Steelers release Britt Miller RB to add a Quarterback stat package to Tyler Palko QB."]
[]
["7-21-12 Trade"]
["Rams trade Jermon Bushrod OT to the Falcons for Anquan Boldin WR."]
[]
["7-15-12 Stat Package"]
["Ravens release Alex Barron OT and Tony Moll OG to add a Tight End stat package to Garrett Graham TE and a Running Back stat package to Javarris James RB."]
[]
["7-14-12 Stat Package"]
["Colts release Rashad Butler OT to add a Return stat package to Mathew Slater RET."]
[]
["7-14-12 Stat Package"]
["Dolphins release Erik Coleman SA, Blair White WR, and Leonard Davis OG to add a Quarterback package to Luke McKown QB, a return package to Michael Spurlock RET, and a Wide Receiver stat packages to Richard Goodman WR and Michael Spurlock WR.."]
[]
["7-13-12 Stat Package"]
["Titans release Mike Person OT and Justin Cole OLB to add a Running Back stat package to Moran Norris RB and a return package to Jordan Babineaux SA."]
[]
[" 7-11-12 Stat Package"]
["Saints release David Carr QB and Mario Henderson OT to add a Wide Receiver stat package to Kevin Cone WR and a Running Back stat package to Mike Goodsen RB."]
[]
["7-10-12 Stat Package"]
["Steelers release quinton spears DE/LB and Mike Sellers RB to add a Wide Receiver stat package to Jerheme Urban WR and a Running Back stat package to Tyler Clutts RB."]
[]
["7-10-12 Stat Package"]
["Packers release Keary Colbert WR and Kevin Kowalski C-G to add a Wide Receiver stat package to Kris Durham WR and a Running Back stat package to Larry Johnson RB."]
[]
["7-10-12 Stat Package"]
["Broncos release Patrick Bailey LB and Courtney Greene SA to add Wide Receiver stat packages to David Reed WR and Kealoha Pilares WR."]
[]
["7-10-12 Stat Package"]
["Vikings release Colin Cloherty TE, Ropati Pitoitua DT, and David Anderson WR to add a running back stat package to Jason Snelling RB, a Tight End stat package to Jeron Mastrud TE, and a Wide Receiver stat package to Niles Paul WR."]
[]
["7-10-12 Stat Package"]
["Texans release Donald Washington SA to add a KR/PR stat package to Maurice Morris RB."]
[]
["TRANSACTIONS DURING DRAFT"]
[]
["6-30-12 Trade:"]
["Broncos trade Jeremy Trueblood OT and Antwan Barnes DE-LB to the Patriots for Anthony Davis OT, Chris Culliver DB, Patriots #8, and Patriots #9."]
[]
["6-27-12 Trade:"]
["Colts trade Colts #6 to the Packers for Bears #7 and Packers #7."]
[]
["6-27-12 Trade:"]
["Patriots trade Dallas Clark TE to the Raiders for  Lance Louis OG and Giants #5."]
[]
["6-25-12 Trade:"]
["Buccaneers trade Joe Mays ILB to the Colts for Raiders #3."]
[]
["6-25-12 Trade:"]
["Falcons trade Steelers #4, Falcons #4, Falcons #5, and Cassius Vaughn CB to the Dolphins for Dolphins #3, Dolphins #10 and Amari Spievey SA.."]
[]
["6-25-12 Trade:"]
["Redskins trade Sen'Derrick Marks DT to the Steelers for Steelers #5. "]
[]
["6-25-12 Trade:"]
["Colts trade David Baas OC, Colts #4, and 49ers #6 to the Bears for Golden Tate WR."]
[]
["6-24-12 Trade:"]
["Patriots trade Jason Taylor to the Redskins for Titans #5."]
[]
["6-24-12 Trade:"]
["Steelers trade Steelers #4 to the Falcons for Will Weatherspoon OLB."]
[]
["6-23-12 Trade:"]
["Redskins trade Lions #1 to the Titans for Titans #2 and Titans #5."]
[]
["6-23-12 Trade:"]
["Redskins trade Redskins #1 to the Lions for Lions #1 and Lions #5."]
[]
["6-23-12 Trade:"]
["Colts trade J.D. Walton OC to the Raiders for Raiders #5."]
[]
["6-23-12 Trade:"]
["Raiders trade Leon Washington RB/KR to the Giants for Giants #5."]
[]
["6-23-12 Trade:"]
["Falcons trade Falcon #1, Falcon #3, Leon Hall CB, and Shawn Lauvao OG to the Bears for Von Miller OLB, Mark Anderson DE, and Bears #5."]
[]
["6-23-12 Trade:"]
["Chargers trade Steelers #1 to the Bears for Cowboys #1 and Bears #6."]
[]
["6-22-12 Trade:"]
["Raiders trade Steelers #1 and 49ers #5 to Chargers for Chargers #1."]
[]
["PRE-DRAFT TRANSACTIONS"]
[]
["5-25-12 Trade:"]
["Bengals trade Jeremy Trueblood OT, Jerry Hughes DE, and Jermaine Cunningham DE-OLB to the Broncos for Brad Meester OC."]
[]
["5-23-12 Colts release:"]
["Jovan Haye DT."]
[]
["5-23-12 Rams release:"]
["Maurice Stovall WR, Tiquan Underwood WR, Mark Clayton WR, and Gerald Alexander SA."]
[]
["5-23-12  Uncarded Retention:"]
["Ravens retain Javarris James RB, Alex Barron OT,  Joshua Moore CB."]
[]
["5-23-12 Panthers release:"]
["Kerry Collins QB, Jake Delhhome QB, David Thomas TE."]
[]
["5-22-12 Falcons release:"]
["Courtney Roby WR and Quintin Demps SA."]
[]
["5-22-12 Chargers release:"]
["Jimmy Claussen QB, Rashied Davis WR, Artis Hicks G-T, and Al Woods DE."]
[]
["5-21-12 Bears release:"]
["Robert Malone P, Larry English OLB, Brett Goode OC, Quinn Ojinnaka OT, Jonathan Wade CB, Jason Hunter DE, Scott Mruczkowski C-G, Nate Kaeding PK, and John Beck QB."]
[]
["5-21-12 Ravens release:"]
["Mike Sellers RB."]
[]
["5-21-12 Trade:"]
["Bengals trade Devin Thomas WR-KR to the Chiefs for Mike Nugent PK."]
[]
["5-21-12 Bengals release:"]
["Rian Lindell PK."]
[]
["5-20-12 Cowboys release:"]
["Derrick Mason WR, Chad Hall, WR,  Nick Hayden DT, Keyunta Dawson DE, and Keith Brooking ILB."]
[]
["5-19-12 Jets release:"]
["Mike Gibson OG, Derrick Dockery OG, Daniel Graham TE, Justin Peelle TE, Ogemdi Nwagbuo DL, Brian Iwuh OLB, Will Herring OLB, and Paul Oliver SA.  "]
[]
["5-18-12 Chiefs release:"]
["Kevin Faulk RB, Bryant Johnson WR, Bear Pascoe HB,  Jim Dray HB, Casey Rabach OC,  Kyle DeVan OG,  Chris Hoke DL, Chauncey Davis DE, and Nate Jones DB."]
[]
["5-18-12 Trade:"]
["Packers trade Packers #1 and Packers #2 to Eagles for 49ers #1 and Eagles #3. "]
[]
["5-18-12  Uncarded Retention:"]
["Saints retain Mario Henderson OL."]
[]
["5-18-12 Saints release:"]
["David Anderson WR, Mike Wright DE, and Austin Lane DE."]
[]
["5-13-12 Steelers release:"]
["Derek Anderson QB, Aaron Brown RB, Quinn Johnson RB, Robert Turner OL, Zach Miller TE, Myron Pryer DT, Bryan Kehl OLB, Anthony Madison CB, and Vincent Fuller SA."]
[]
["5-13-12 49ers release:"]
["Michael Robinson RB, Anthony Adams DT, and Josh Brown PK."]
[]
["5-13-12 Broncos release:"]
["Dennis Dixon QB,  Eldra Buckley RB, Max Komar WR,  Marlon Moore WR,  Blair White WR,  Stephen Spach TE, Kevin Vickerson DT,  Juqua Parker DE, CJ Au You DE, Gerrard Warren DL,  Garison Sanborn OLB,  Mario Haggan LB,  Leigh Torrance CB, CC Brown SA, and  Frank Walker DB.  "]
[]
["5-13-12  Uncarded Retention:"]
["Falcons retain Garrett Hartley PK."]
[]
["5-13-12 Cardinals release:"]
["Billy Volek QB, David Buehler PK, Daniel Seplveda P, and Pat Lee DB."]
[]
["5-12-12 Dolphins release:"]
["Luke McCown QB, Sammy Morris RB, Ahmard Hall  RB. Michael Spurlock WR, Ben Hartsock TE, Derek Hardman OG, Mike Neal DE, Ben Leber OLB, Moise Fokou OLB, and Eric Coleman SA. "]
[]
["5-12-12 Redskins release:"]
["Akwasi Owusu-Ansah SA."]
[]
["5-11-12 Vikings release:"]
["Taylor Price WR, T.J. Houshmandzadeh WR, Morgan Trent CB, Dylan Gandy C-G, and Tim Dobbins ILB."]
[]
["5-10-12 Patriots release:"]
["Jon Kitna QB, Brian Robiske WR, and Everette Brown OLB."]
[]
["5-10-12 Raiders release:"]
["Eric Moore DL."]
[]
["5-10-12 Lions release:"]
["Charlie Batch QB, Chris Gronkowksi. RB, Turk McBride DE, Marvin Mitchell ILB, and  Brad Jones LB."]
[]
["5-10-12 Bills release:"]
["Shaun Hill QB, Seyi Ajirotutu WR, and Michael Clayton WR."]
[]
["5-4-12 Titans release:"]
["Rusty Smith QB, Jordan Palmer QB,  Julius Jones RB, Jalen Parmele RB, Donald Lee TE, Lydon Murtha G-T, Antwan Odom DE, Kentwan Balmer DL,  Kevin Bentley"]
["LB,  Justin Tryon CB, Kennard Cox CB, Barry Church SA, and Jeff Reed PK."]
[]
["4-30-12 Bengals release:"]
["Shaun Ellis DE-OLB and Shayne Graham PK."]
[]
["4-25-12 Trade:"]
["Raiders trade Chad Ochocinco WR to Ravens for Jordan Shipley WR."]
[]
["4-25-12 Uncarded Retention:"]
["Colts retain Eric Steinbach OG."]
[]
["4-24-12 Trade:"]
["Panthers trade Trent Williams OT,  James Jones WR, and Panthers #3 to the Raiders for Kevin Kolb QB, and  Peyton Hillis RB."]
[]
["4-24-12 Trade:"]
["Packers trade Vince Young QB to Patriots for Donovan McNabb QB. "]
[]
["4-22-12 Trade:"]
["Chargers trade  Wes Welker WR,  London Fletcher LB,  Antonio Cromartie CB, Chargers #4, and Chargers #7 to the Patriots for Jon Beason LB, Terrence Cody DT,  Matt Shaughnessy DE, Jerraud Powers CB, and Patriots #2."]
[]
["4-19-12 Trade:"]
["Colts trade Ray Lewis ILB to 49ers for 49ers #2 and 49ers #6."]
[]
["4-18-12 Trade:"]
["Raiders trade Raiders #3 to Colts for Major Wright SA."]
[]
["4-17-12 Trade:"]
["Lions trade Dan Koppen OC to the Giants for Giants #7."]
[]
["4-16-12 Trade:"]
["Bears trade Everson Griffen DL to the Raiders for Peria Jerry DT."]
[]
["4-14-12 Trade:"]
["Packers trade Shaun Cody DT and Green Bay #6 to the Cowboys for Sharrod Martin SA."]
[]
["4-13-12 Giants release:"]
["Titus Brown ILB, and Jerome Harrison RB."]
[]
["4-13-12 Trade:"]
["Giants trade Rex Grossman QB, Lance Ball RB,  Kevin Williams WR,  Demetress Bell OT, and Giants #2 to the Rams for Steve Smith (Car) WR."]
[]
["4-13-12 Trade:"]
["Eagles trade Philadelphia #1 and Mike Adams SA to the 49ers for San Francisco #1 and Colt McCoy."]
[]
["4-12-12 Uncarded Retention:"]
["Buccaneers retain Tony Moeaki TE and Jerome Murphy CB.."]
[]
["4-12-12 Buccaneers release:"]
["Clint Stitser PK, Mike Karney RB, Levi Jones RB, Bryan Leftwich QB, Sam Hurd WR, Anthony Gonzalez WR,  and Daniel Loper OG."]
[]
["4-12-12 Trade:"]
["Packers trade Green Bay #4 to Philadelphia for Jason Campbell QB. "]
[]
["4-12-12 Trade:"]
["Packers trade Jovan Belcher ILB and Green Bay #3 to the Broncos for Bart Scott ILB and Shayne Lechler P."]
[]
["4-12-12 Trade:"]
["49ers trade Rolando McClain ILB to the Bears for Tim Tebow QB."]
[]
["4-12-12 Trade:"]
["Giants trade Jamarca Sanford SA to the 49ers for Antonio Garay DT."]
[]
["4-12-12 Uncard  Retention:"]
["Redskins retain Rashard Jennings RB."]
[]
["4-12-12 Trade:"]
["Redskins trade Jacoby Jones WR/PR, Charlie Brown OT, Washington #2, and Washington #5 to the Cardinals for Scott Wells OC and Jarrett Dillard WR."]
[]
["4-12-12 Trade:"]
["Redskins trade Kyle Cook OC to the Lions for Detroit #3."]
[]
["4-11-12 Trade:"]
["Saints trade Cedric Griffin CB to Giants for Just Durant LB."]
[]
["4-11-12 Trade:"]
["Raiders trade Richie Incognito OG and Hines Ward WR to the 49ers for San Francisco #3 and San Francisco #5."]
[]
["4-11-12  Trade:"]
["Raiders trade Alex Smith QB,  Darnel Docket DL, Devin Hester WR/RET,  Adam Jones CB, Raheem Brock DE, and Visanthe Shaincoe TE to Buffalo for Ndamukong Suh DT, Buffalo #1,and Buffalo #2."]
[]
["4-11-12 Trade:"]
["Raiders trades Mike Vick QB, Champ Bailey CB,  Jay Ratliff DT, Matt Light OT, Quinten Mikell SA, and  Antoine Cason CB to the Steelers for Alex Smith QB, Devin McCourtney DB, Pittsburgh #1, Pittsburgh #2, and Pittsburgh #3."]
[]
["4-11-12 Jaguars release:"]
["Brady Quinn QB and Brian Williams CB."]
[]
["4-11-12 Trade:"]
["Jaguars trade Jacksonville #2 to Kansas City for Ryan Fitzpatrick QB."]
[]
["4-11-12 UnCarded Retention:"]
["Packers retain Ryan Harris OT."]
[]
["4-11-12 Packers release:"]
["Patrick Mannelly C/LS , Billy Bajema TE , Bernard Berrian WR , Philip Buchanon CB, Tom Nelson SA , and Sean Considine SA."]
[]
["4-11-12 Trade:"]
["Redskins trade Laurent Robinson WR, Joseph Addai RB, and Tarrell Brown CB to the Cowboys for Jonathan Stewart RB."]
[]
["4-11-12 Trade:"]
["Redskins trade Dennis Pita TE to the Saints for Dan Orlovsky QB."]
[]
["4-11-12 Trade:"]
["Giants trade Sean Weatherspoon OLB to to the Bears for DeAngelo Williams RB."]
[]
["4-11-12 Trade:"]
["Packers trade Matt Turk P and Aramanti Edwards WR to the Bears for Chicago #7"]
[]
["4-11-12 Three Team Trade:"]
["Cowboys acquire:"]
["Chicago #1"]
[]
["Patriots acquire:"]
["Mark Sanchez QB"]
[]
["Bears acquire:"]
["Dallas #1"]
["Dallas #3"]
["New England #1"]
["Red Bryant DE"]
[]
["4-11-12 Texans release:"]
["Greg Camarillo WR, Brandon Stokley WR, Reggie Wells OG, Jamaal Jackson OC, Jeff Charleston DE, Bryant McFadden CB, Benny Sapp CB, Chris Johnson CB, and Dan Gronkowski TE."]
[]
[]
[]
["2011 Transactions"]
[]
["10-17-11 Trade"]
["Cowboys trade Darius Reynaud  WR to Chargers for Chris Chambers WR. "]
[]
["10-17-11 Trade"]
["Panthers trade Raheem Brock DL to Raiders for Keith Rivers OLB."]
[]
["10-14-11 Trade"]
["Patriots trade Reggie Bush RB and Reshad Jones SA  to Steelers for Donald Brown RB amd Abram Elam SA."]
[]
["10-13-11 Trade"]
["Raiders trade Felix Jones RB and Joe Staley OT to the Steelers for Peyton Hillis RB and Tyronne Green OG."]
[]
["9-13-11 In-Season Transaction:"]
["Redskins release James Davis RB, Atari Bigby S, and Maake Kemoteau DT."]
["Redskins claim Kris Jenkins DT, Eugene Wilson S, and Jeremy Cain OLB ."]
[]
["9-13-11 In-Season Transaction:"]
["Raiders release Syd'Quan Thompson CB and claim Joey Galloway WR"]
[]
["8-9-11 Stat Package"]
["Falcons release Stephen Williams WR to add stat package to Gartrell Johnson RB."]
[]
["8-9-11 Stat Package"]
["Broncos release Darcel McBath SA,  Usama Young SA, and Nick Kazcur OG  to add stat packages to Dennis Dixon QB, Donnie Avery WR, and Eldra Buckley RB."]
[]
["8-8-11 Stat Package"]
["Panthers release Laurence Maroney RB to add stat package to Ryan Grant RB."]
[]
["8-8-11 Stat Package"]
["Chargers release Brandon Manumaleuna HB to add stat package to Tyrell Sutton RB."]
[]
["8-7-11 Stat Package"]
["Cardinals release Kris Jenkins DT and Roddrick Muckelroy ILB to add stat packages to Dorin Dickerson WR and Jarrett Dillard WR."]
[]
["8-7-11 Stat Package"]
["Eagles release Eugene Wilson SA to add stat package to Chris Redman QB."]
[]
["8-7-11 Stat Package"]
["Saints release Daniel Coats TE to add stat package to Chris Henry RB."]
[]
["8-7-11 Stat Package"]
["Bills release Tom Crabtree TE and Aaron Maybin OLB to add stat packages to Dimitri Nance RB and Nate Byham TE."]
[]
["8-4-11 Stat Package"]
["Ravens add stat package for Javarris James RB.  Roster at 49 no other roster move required."]
["Ravens release Leonard Weaver RB to add stat package for Garrett Graham TE."]
[]
["8-3-11 Stat Package"]
["Bills release Vaughn Martin DE to add stat package to Michael Clayton WR."]
[]
["8-3-11 Stat Package"]
["Giants release Lawrence Sidbury DE to add stat package to Kyle Williams WR."]
[]
["7-21-11 Trade"]
["Raiders trade Knowshon Moreno RB and Michael Crabtree WR to Colts for Felix Jones RB and Hines Ward WR."]
[]
["6-19-11 Trade"]
["Patriots trade Brian Hartline WR, Jamal Williams DT, and New England #9 to the Packers Reggie Bush RB, Dallas Clark HB and Green Bay #10."]
[]
["6-16-11 Trade"]
["Giants trade Tommie Harris DT to Cowboys for Dallas #6."]
[]
["6-14-11 Trade"]
["Bears trade Jonathan Goodwin OC to Jets for Deangelo Williams RB and Jets #5."]
[]
["6-13-11 Trade"]
["Bengals trade Cincinnati #3 and Cincinnati #6 to Bears for Stefan Logan WR-RET."]
[]
["6-13-11 Trade"]
["Jets trade Matt Hasselbeck QB, James Hall DE, Mewelde Moore RB, Eben Britton OT, Jets #3, and Jets #4 to 49ers for David Garrard QB, Ryan Diem OT, Deandre Levy ILB, and Kyle Vanden Bosch DE."]
[]
["6-12-11 Trade"]
["Chargers trade Chris Gamble CB to New Orleans for Saints #2."]
[]
["6-12-11 Trade"]
["Packers trade Green Bay #4, Green Bay #6, and Green Bay #7 to the Giants for Alan Faneca OG, Lardarius Webb CB, and Giants #7."]
[]
["6-12-11 Trade"]
["Saints trade New Orleans #4 to the Giants for Jim Leonhard SA."]
[]
["6-12-11 Trade"]
["49ers trade Oshiomogho Atogwe SA, and Darren Sproles RB-RET to Packers for Brandon Mebane DT, Green Bay #2, and Green Bay #5."]
[]
["6-11-11 Trade"]
["Saints trade Max Jean-Gilles OG, Chris Canty DT, and Buffalo  #4 to Cowboys for OLB Tully Banta-Cain, DL Mike Wright and the Cowboys #3."]
[]
["6-09-11 Trade"]
["Eagles trade Anquan Boldin WR and Will Witherspoon LB to Falcons for Mike Sims-Walker WR, Gerald McRath OLB, Atlanta #3, and Atlanta #4."]
[]
["6-01-11 Trade"]
["Bengals trade Samson Satele OC to the Dolphins for Damien Woody OT."]
[]
["5-25-11 Dolphins release:"]
["Jeff Garcia QB, Brodie Croyle QB, Joey Galloway WR, Vonnie Holliday DE, and Reggie Wells G-T."]
[]
["5-25-11 Jaguars release:"]
["Desmond Bryant DT, John Carney K, and Chad Pennington QB."]
[]
["5-25-11 Patriots release:"]
["John St. Clair OT."]
[]
["5-24-11 Panthers release:"]
["Chester Taylor RB, Jake Delhomme QB,  Lonnie Paxton OC, Chris Morris OC, T.J. Lang G-T, Steve Vallos C-G, Keyunta Dawson DE, Russell Allen LB, Victor Butler OLB, Lito Sheppard CB, Quintin Demps SA, and David Bruton SA."]
[]
["5-24-11 Titans release:"]
["Chris Redman QB, J.P. Losman QB, Mike Bell RB, Justin Snow TE, Evan Mathis OG, Chad Rinehart OG, Charlie Anderson OLB, Keyaron Fox LB, Gerald Hayes LB, Anthony Smith DB, and Kevin Boothe G-T."]
[]
["5-23-11 49ers release:"]
["Howard Green DL, Keydrick Vincent OG, and Stephen Neal OG."]
[]
["5-22-11 Chargers release:"]
["Gijon Robinson HB, David Binn OC, David Carr QB, Moran Norris RB, and Lex Hillard RB."]
[]
["5-21-11 Saints release:"]
["Ken Hamlin SA, Hamza Abdullah SA, Brady Poppinga OLB,  Cullen Loeffler OC, Jimmy Wilkerson DL, and Philip Daniels DE."]
[]
["5-18-11 Bears release:"]
["Rex Grossman QB, Ladell Betts,RB, Kenneth Darby RB, Mike Cox RB, Rashied Davis WR, Stephen Spach HB, Brett Goode OC, Rex Hadnot C-G, Scott Mruczkowski C-G, Clifton Ryan DT, Trevor Pryce DL, Corey Mays ILB, Blake Costanzo LB, Jonathan Wade CB, Bruce Johnson CB, Derrick Martin SA, Hiram Eugene SA, Al Afalava SA, and Jeremy Kapinos K-P."]
[]
["5-17-11 Falcons release:"]
["JT O’Sullivan QB, Chad Simpson RB, Andrew Economos OC, Kawika Mitchell OLB, Sammy Morris RB, and Chris Horton SA."]
[]
["5-16-11 Jets release:"]
["Hank Baskett WR, Rocky Bernard DT, Brian Robison DT, Keith Ellison ILB, Ramon Humber OLB, and Will Blackmon SA."]
[]
["5-15-11 Trade"]
["Raiders trade Donte Whitner SA, Oakland #6, Oakland #7 to Kansas City for Kerry Rhodes SA."]
[]
["5-14-11 Chiefs release:"]
["Brett Ratliff QB, Chris Brown  RB, Dantrell Savage RB, Andre Davis WR, Jaymar Johnson WR, Javon Walker WR, Desmond Clark TE, Darcy Johnson TE, Jamar Mesbit G-T, Marques Douglas DE, Freddy Keiaho LB, Chaun Thompson LB, Shawn Springs CB, Ralph Brown CB, Quincy Butler CB, and Quinton Teal SA."]
[]
["5-14-11 Steelers release:"]
["Brady Quinn QB, Garrett Reynolds OT, Fred Evans DT, Tyrone Carter SA, Craig Steltz SA, Usama Young SA, DeShea Townsend CB, and Francies Coye CB."]
[]
["5-10-11 Vikings release:"]
["Madison Hedgecock FB, David Clowney WR, Shawn Nelson TE, Allen Barbre G-T, Kasey Studdard G, DaJuan Morgan SA and Antwaun Molden CB."]
[]
["5-10-11 Trade"]
["49ers trade Jacob Tamme TE, Malcom Floyd WR, and San Francisco #4 to Vikings for Stephen Nicholas OLB, Minnesota #2, and Minnesota #3."]
[]
["5-10-11 Trade"]
["49ers trade Peyton Manning QB, Brian Brohm QB, Steve Smith WR, Deion Grant SA, Patrick Cobbs RB, and Tiquan Underwood WR to Rams for David Garrard QB, Robert Meacham WR, Jacob Tamme TE, David Hawthorne LB, St. Louis #1 and St. Louis #2. "]
[]
["5-03-11 Trade"]
["Patriots trade Dan Connor LB and Alphonso Smith CB to Cowboys for Chris Myers OC and Josh Wilson CB."]
[]
["5-02-11 Patriots release:"]
["Bryan Scott SA."]
[]
["5-02-11 Trade"]
["Cowboys trade Ryan Clady OT and Dallas #4 to Raiders for Jason Smith OT, John Sullivan OC, and Sharrod Martin SA."]
[]
["5-01-11 Raiders release:"]
["Matt Leinart QB, Larwence Maroney RB, Richard Quinn TE, and Marton Harrison DT."]
[]
["4-28-11 Trade"]
["Raiders trade Dave Buehler K to Cardinals for Arizona #8."]
[]
["4-27-11 Trade"]
["Bears trade Roscoe Parrish WR, Steve Gregory SA, and Chicago #6 to Cowboys for Dallas #2."]
[]
["4-26-11 Trade"]
["Bears trade Mike Wallace WR to Falcons for Atlanta #1 and Atlanta #2."]
[]
["4-26-11 Trade"]
["Saints trade Benjarvus Green-Ellis RB to the Bills for Chris Houston CB,  Mike Goodsen RB, and Buffalo #4."]
[]
["4-26-11 Trade"]
["Raiders trade Amobi Okoye DT and Oakland #5 to the Eagles for Jay Ratliff DT."]
[]
["4-26-11 Trade"]
["Bears trade Mackenzy Bernardeau OG to Eagles for Philadelphia #5."]
[]
["4-26-11 Trade"]
["Bears trade Joseph Addai RB to Redskins for Washington #4. "]
[]
["4-26-11 Trade"]
["Bears trade Chad Henne QB to Jaguars for Jacksonville #3. "]
[]
["4-26-11 Trade"]
["Bears trades Ryan Fitzpatrick QB to Chiefs for Kansas City #3."]
[]
["4-25-11 Lions release:"]
["Kirk Chambers G-T, Chris White C-G, and Gabe Watson DT."]
[]
["4-25-11 Cowboys release:"]
["Tony Fiammetta RB, Arnaz Battle WR, David Anderson WR, Jay Richardson DE, John McCargo DL, Chase Blackburn ILB, Matt Ware SA, Michael Johnson SA, and Jarrett Bush DB."]
[]
["4-24-11 Cardinals release:"]
["Jaron Gilbert DT, Xavier Adibi OLB, Jamar Williams OLB, Ashton Youboty CB, Marvin White SA, Dominque Barber SA, and Kris Brown K."]
[]
["4-24-11 Redskins release:"]
["Sabby PIscitelli SA and Leonard Pope TE."]
[]
["4-24-11 Trade"]
["Patriots trade New England #2 to Giants for Pat Williams DT, Jason Taylor OLB, and New York (N) #6."]
[]
["4-22-11 Buccaneers release:"]
["Larry Johnson RB, Quinn Ojinnaka G-T, Louis Leonard DE, Stanford Keglar ILB, Chevis Jackson CB, Randall Gay CB, and Will Allen SA."]
[]
["4-20-11 Trade"]
["Vikings trade Minnesota #1 to New England for Fred Jackson RB."]
[]
["4-20-11 Bills release:"]
["Cyril Obiozor OLB, Patrick Turner WR, and Vincent Fuller SA."]
[]
["4-16-11 Trade"]
["Patriots trade Fili Moala DT, Robert Geathers DE, Heath Evans FB, and Andre Caldwell WR to Texans for Fred Robbins DT, Chris Gocong OLB, Jon Kitna QB, and Flozell Adams OT."]
[]
["4-16-11 Patriots release:"]
["Quinton Ganther RB, Alex Barron OT, Tyron Brackenridge CB, Al Harris CB, Brad Maynard P."]
[]
["4-16-11 Trade"]
["Vikings trade Patrick Chung SA to Eagles for Israel Idonije DE."]
[]
["4-14-11 Giants release:"]
["Matthew Slater WR, John Gilmore TE, Andre Fluellen DT, Bobby Carpenter OLB, Todd Collins QB."]
[]
["4-13-11 Redskins release:"]
["Jarmon Meredith OT, Jeremy Cain OLB."]
[]
["4-13-11 Bengals release:"]
["Jerramy Stevens TE, Jason Williams OLB, Jarvis Moss OLB, and Pat Watkins SA."]
[]
["4-12-11 Trade"]
["Bills trade Adrian Peterson RB to Cardinals for Stevie Johnson WR and Lance Moore WR. "]
[]
["4-12-11 Trade"]
["Raiders trade Brandon Jackson RB and Eugene Wilson SA to Eagles for Devin Hester WR and Matt Flynn QB."]
[]
["4-11-11 Bills release:"]
["Spencer Larsen RB, Jason McKie RB, Robert Royal TE, J. P. Foschi TE, Sage Rosenfels QB, Ryan Sims DE, Jon Condo LB, Chris Reis SA, Josh Bullocks SA, Rian Lindell PK, Akeem Jordan OLB."]
[]
["4- 11-11 Texans release:"]
["Marc Bulger QB, Kenneth Moore WR, Demetrius Williams WR, Kellen Davis TE, Ernest Wilford HB, Will Svitek OT, Ryan Denney DE, Bobby McCray DE, Jon McGraw SA"]

{"sheet":"Leaders","index":9,"n_rows":425,"n_cols":28,"rows_kept":425,"cut":false,"hidden":false,"merged":[]}
[]
[null,"IFL SEASON LEAGUE LEADERS"]
[]
[]
[null,"RUSHING"]
[]
[null,"Rushing Yards","Team",null,null,"Rushing Attempts","Team",null,null,"Rushing Average","Team",null,null,"Rushing Long",null,null,null,"Rushing TDs","Team"]
[2009,"Michael Turner","New England",1666,null,"Adrian Peterson","Buffalo",367,null,"Derrick Ward","Giants",5.6,null,"Adrian Peterson","Buffalo",82,null,"Bradon Jacobs","Giants",17]
[2008,"LaDainian Tomlinson","Green Bay",1428,null,"Thomas Jones","San Diego",337,null,"Brandon Jacobs","Giants",6.1,null,"Fred Taylor","Oakland",93,null,"Joseph Addai","San Francisco",11]
[2007,"Willie Parker","Indianapolis",1824,null,"Larry Johnson","Tampa Bay",418,null,"Michael Vick","Baltimore",6.6,null,"Chester Taylor","Carolina",90,null,"Tiki Barber","Giants",17]
[2006,"Rudi Johnson","Arizona",1774,null,"Rudi Johnson","Arizona",395,null,"Clinton Portis","Minnesota",5.8,null,"Shaun Alexander","Washington",86,null,"Tiki Barber","Giants",25]
[2005,"Curtis Martin","Dallas",1903,null,"Rudi Johnson","Carolina",357,null,"Deuce McAllister","Atlanta",5.8,null,"Jamal Lewis","Indianapolis",80,null,"Shaun Alexander","Giants",18]
[2004,"Ahman Green","Giants",2109,null,"Ricky Williams","New Orleans",383,null,"Clinton Portis","Minnesota",6.9,null,"Jamal Lewis","Indianapolis",81,null,"Ahman Green","Giants",29]
[2003,"Clinton Portis","Giants",2273,null,"Ricky Williams","St. Lous",446,null,"Michael Vick","Washington",7.6,null,"William Green","San Diego",72,null,"Priest Holmes","Dallas",24]
[2002,"Curtis Martin","Jacksonville",1922,null,"Curtis Martin","Jacksonville",360,null,"Tiki Barber","New England",6.3,null,"Dominic Rhodes","Denver",77,null,"Curtis Martin","Jacksonville",31]
[2001,"Mike Anderson","Giants",1721,null,"Jerome Bettis","Indianapolis",355,null,"Fred Taylor","Green Bay",6.3,null,"Tyrone Wheatley","Jets",87,null,"Emmitt Smith","Dallas",23]
[]
[]
[null,"RECEIVING"]
[]
[null,"Receptions","Team",null,null,"Receiving Yards","Team",null,null,"Receiving Ave.","Team",null,null,"Receiving Long","Team",null,null,"Receiving TDs","Team"]
[2009,"Wes Welker","San Diego",112,null,"Wes Welker","San Diego",1532,null,"Terrell Owens","Tampa Bay",17.7,null,"Bobby Wade","Philadelphia",83,null,"Two tied",null,15]
[2008,"Terrell Owens","Tampa Bay",105,null,"Terrell Owens","Tampa Bay",1602,null,"Andre Johnson","Giants",18,null,"Roy Williams","Jets",99,null,"Antonio Gates","San Francisco",26]
[2007,"Mike Furrey","Houston",104,null,"Andre Johnson","Giants",1733,null,"Chris Henry","Cincinnati",26,null,"Marquis Colston","Buffalo",87,null,"Tony Gonzalez","Atlanta",28]
[2006,"Anquan Boldin","Philadelphia",110,null,"Anquan Boldin","Philadelphia",1827,null,"Reggie Wayne","Kansas City",19.3,null,"Brandon Stokley","Pittsburgh",86,null,"Tony Gonzalez","Atlanta",35]
[2005,"Tony Gonzalez","Atlanta",112,null,"Tony Gonzalez","Atlanta",1702,null,"Ashley Lelie","Denver",20,null,"Reggie Wayne","Kansas City",76,null,"two tied",null,19]
[2004,"Anquan Boldin","Philadelphia",102,null,"Chad Johnson","Baltimore",1414,null,"Joey Galloway","Dallas",18.2,null,"Corey Bradford","Jacksonville",77,null,"Tony Gonzalez","Atlanta",22]
[2003,"Marvin Harrison","Giants",130,null,"Marvin Harrison","Giants",1599,null,"Travis Taylor","Carolina",19.600000000000001,null,"Peerless Price ","Oakland",74,null,"Tony Gonzalez","Atlanta",21]
[2002,"Rod Smith","Cleveland",109,null,"Randy Moss","Minnesota",1490,null,"Willie Jackson","Dallas",18.8,null,"Quentin McCord","Carolina",74,null,"Tony Gonzalez","Atlanta",18]
[2001,"Ed McCaffrey","Dallas",103,null,"Randy Moss","St. Louis",1711,null,"J.J. Stokes","Cincinnati",21.1,null,"Dez White ","Minnesota",85,null,"Ed McCaffrey","Dallas",21]
[]
[]
[null,"PASSING"]
[]
[]
[null,"Passer Rating","Team",null,null,"Pass Attempts","Team",null,null,"Passing Yards","Team",null,null,"Passing TDs","Team",null,null,"Interceptions","Team"]
[2009,"Drew Brees","Giants",111.9,null,"Brett Favre","Indianapolis",538,null,"Phillip Rivers","Minnesota",4241,null,"Phillip Rivers","Minnesota",34,null,"Brett Favre","Indianapolis",21]
[2008,"Drew Brees","Giants",116.6,null,"Tom Brady","Denver",597,null,"Tom Brady","Denver",4473,null,"Peyon Manning","San Francisco",50,null,"Jon Kitna","New Orleans",29]
[2007,"Drew Brees","Giants",118,null,"Brett Favre","Indianapolis",612,null,"Drew Brees","Giants",4939,null,"Drew Brees","Giants",50,null,"Jon Kitna","New Orleans",25]
[2006,"Trent Green","Atlanta",123.8,null,"Eli Manning","Detroit",540,null,"Jake Delhomme","San Francisco",4173,null,"Jake Delhomme","San Francisco",42,null,"Brett Favre","Indianapolis",31]
[2005,"Drew Brees","Tampa Bay",111.2,null,"Daunte Culpepper","Kansas City",546,null,"Daunte Culpepper","Kansas City",4626,null,"Peyton Manning","Dallas",42,null,"two tied",null,24]
[2004,"Jake Plummer","Giants",122.5,null,"Donovan McNabb","New England",510,null,"Peyton Manning","Dallas",3869,null,"Trent Green","Atlanta",32,null,"two tied",null,21]
[2003,"Rich Gannon","Cleveland",109.1,null,"Tim Couch","San Francisco",531,null,"Trent Green","Baltimore",3670,null,"Kerry Collins","Detroit",31,null,"two tied",null,22]
[2002,"Tony Banks","Atlanta",101.9,null,"Donovan McNabb","New England",532,null,"Peyton Manning","Dallas",4033,null,"Kurt Warner","Tampa Bay",36,null,"Tim Couch","San Francisco",29]
[2001,"Rich Gannon","Buffalo",107.6,null,"Donovan McNabb","New England",534,null,"Vinny Testaverde","St. Louis",4207,null,"two tied",null,36,null,"two tied",null,23]
[]
[]
[null,"PASS DEFENSE"]
[]
[null,"Interceptions","Team",null,null,"Interception Yards","Team",null,null,"Long Interceptions","Team",null,null,"Interception TD","Team",null,null,"Deflections","Team"]
[2009,"Three tied",null,6,null,"Nick Collins","Minnesota",300,null,"Kelvin Hayden","Carolina",98,null,"Nick Collins","Minnesota",3,null,"Antonio Cromartie","San Diego",11]
[2008,"Antonio Cromartie","San Diego",8,null,"Gary Brackett","Tampa Bay",214,null,"Gary Brackett","Tampa Bay",109,null,"several tied",null,2,null,"Kirk Morrison","Miami",14]
[2007,"Walt Harris","New England",10,null,"Champ Bailey","Oakland",178,null,"Mathias Kinwanuka","Dallas",88,null,"three tied",null,3,null,"Patrick Surtain","Dallas",14]
[2006,"Ty Law","Giants",8,null,"Ty Law","Giants",280,null,"Darren Sharper","San Diego",90,null,"Ty Law","Giants",3,null,"three tied",null,13]
[2005,"Ed Reed","Miami",10,null,"Ed Reed","Miami",453,null,"two tied",null,98,null,"Darren Sharper","Chargers",3,null,"Brian Dawkins","Washington",17]
[2004,"Tony Parrish","Giants",9,null,"Travis Fisher","Jacksonville",203,null,"Mike Minter","Minnesota",104,null,"Travis Fisher","Jacksonville",3,null,"Ty Law","Dallas",17]
[2003,"Rod Woodson","Jacksonville",10,null,"Rod Woodson","Jacksonville",258,null,"Keion Carpenter","Atlanta",97,null,"Rod Woodson","Jacksonville",4,null,"Mike Brown","Dallas",18]
[2002,"Deltha O'Neal","Jets",10,null,"Brock Marion","Jets",200,null,"Ronde Barber","Giants",89,null,"Brock Marion","Jets",3,null,"Nate Clements","San Francisco",20]
[2001,"Darren Sharper","Jacksonville",9,null,"Eric Allen","Buffalo",269,null,"Ashley Ambrose","San Diego",84,null,"Eric Allen","Buffalo",4,null,"Samari Rolle","Miami",20]
[]
[]
[null,"SACKS"]
[]
[]
[null,"Sacks","Team",null,null,"Sack Yards","Team",null,null,"Hurries","Team",null,null,"Safties","Team"]
[2009,"John Abraham","Minnesota",18,null,"John Abraham","Minnesota",120,null,"Darren Howard","San Francisco",40,null,"Shaun Rogers","Patriots",2]
[2008,"Shawn Merriman","New England",20,null,"Shawn Merriman","New England",127,null,"Jared Allen","Jacksonville",29,null,"several tied",null,1]
[2007,"Derrick Burgess","Indianapolis",24,null,"Derrick Burgess","Indianapolis",160,null,"Julius Peppers","Philadelphia",39,null,"Kevin Carter","Giants",2]
[2006,"two tied",null,18,null,"Derrick Burgess","Indianapolis",135,null,"Jared Allen","Jacksonville",26,null,"several",null,1]
[2005,"Terrell Suggs","Buffalo",21,null,"Shaun Ellis","Houston",136,null,"Shaun Ellis","Houston",22,null,"Adalius Thomas","Washington",2]
[2004,"three tied",null,18,null,"Simeon Rice","San Francisco",127,null,"two tied",null,21,null,"several",null,1]
[2003,"Mike Rucker","Denver",14,null,"Mike Rucker","Denver",116,null,"Patrick Kerney","Baltimore",29,null,"several",null,1]
[2002,"Peter Boulware","Green Bay",16,null,"two tied",null,107,null,"Marcellus Wiley","Cleveland",36,null,"several",null,1]
[2001,"Joey Porter","Green Bay",34,null,"Joey Porter","Green Bay",193,null,"two tied",null,39,null,"Jason Gildon","Indianapolis",3]
[]
[]
[]
[null,"TACKLES"]
[]
[]
[null,"Tackles","Team",null,null,"Stuffs","Team",null,null,"Stuff Yards","Team",null,null,"Tackles/Game","Team",null,null,"Forced Fumbles","Team"]
[2009,"Clint Session","Pittsburgh",163,null,"two tied",null,24,null,"Clint Session","Pittsburgh",48,null,"Gary Brackett","Tampa Bay",12.1,null,"James Harrison","Miami",9]
[2008,"Gerald Hayes","Tennessee",205,null,"Ernie Sims","Dallas",29,null,"Trent Cole","Arizona",51,null,"Gerald Hayes","Tennessee",12.8,null,"James Harrison","Miami",15]
[2007,"James Farrior","Arizona",176,null,"Lance Briggs","New England",28,null,"Lance Briggs","New England",58,null,"James Farrior","Arizona",11,null,"Jason Taylor","Giants",17]
[2006,"Jonathan Vilma","Carolina",193,null,"Larry Foote","Cincinnati",29,null,"Keith Adams","New Orleans",54,null,"Jonathan Vilma","Carolina",12.1,null,"Jared Allen","Jacksonville",13]
[2005,"Teddy Lehman","Green Bay",188,null,"Teddy Lehman","Green Bay",30,null,"D.J. Williams","Oakland",66,null,"Teddy Lehman","Green Bay",11.8,null,"Greg Spires","St. Louis",16]
[2004,"Andra Davis","Detroit",181,null,"La'Roi Glover","San Francisco",14,null,"two tied",null,28,null,"two tied",null,11.3,null,"Terrell Suggs","Buffalo",13]
[2003,"Ted Johnson","Philadelphia",160,null,"Jay Foreman","New Orleans",24,null,"two tied",null,50,null,"Ted Johnson","Philadelphia",10,null,"Dwight Freeney","Detroit",13]
[2002,"Kendrell Bell","Arizona",164,null,"Kendrell Bell","Arizona",32,null,"Kendrell Bell","Arizona",61,null,"Kendrell Bell","Arizona",10.3,null,"John Abraham","Minnesota",10]
[2001,"Micheal Barrow","Minnesota",168,null,"Ken Norton","Arizona",34,null,"Micheal Barrow","Minnesota",69,null,"Micheal Barrow","Minnesota",10.5,null,"Joey Porter","Green Bay",13]
[]
[]
[]
[null,"KICK RETURNS"]
[]
[]
[null,"Kick Return Ave","Team",null,null,"Kick Returns","Team",null,null,"Kick Return Yards","Team",null,null,"Kick Return Long","Team",null,null,"Kick Return TDs","Team"]
[2009,"Leodis McKelvin","Denver",30.2,null,"Rock Cartwright","Pittsburgh",87,null,"Leodis McKelvin","Denver",1995,null,"Felix Jones","Indianapolis",99,null,"Five tied",null,1]
[2008,"Andre Davis","Giants",33,null,"Benny Sapp","Tennessee",94,null,"Joshua Cribbs","Minnesota",1858,null,"Jerome Mathis","Oakland",105,null,"Andre Davis","Giants",3]
[2007,"Michael Lewis","Cincinnati",27.8,null,"Dexter Wynn","Green Bay",81,null,"J.J. Arrington","Washington",1667,null,"Maurice Jone-Drew","Miami",99,null,"Maurice Jone-Drew","Miami",1]
[2006,"Terrence McGee","Giants",29.5,null,"Tyson Thompson","Kansas City",82,null,"Tyson Thompson","Kansas City",1694,null,"Ladell Betts","Green Bay",96,null,"Five tied",null,1]
[2005,"Willie Ponder","Chicago",25.1,null,"Jamal Robertson","Cincinnati",75,null,"Tim Dwight","Carolina",1488,null,"Tim Dwight","Carolina",100,null,"two tied",null,2]
[2004,"Jonathan Carter","Giants",32.1,null,"Dante Hall ","San Francisco",69,null,"Dante Hall ","San Francisco",1755,null,"Dante Hall ","San Francisco",99,null,"two tied",null,2]
[2003,"Marcus Knight","Houston",32.200000000000003,null,"Allen Rossum","Chicago",74,null,"Kevin Kasper","San Diego",1729,null,"two tied",null,100,null,"three tied",null,2]
[2002,"Brian Mitchell","Miami",25.9,null,"Frank Murphy","Baltimore",70,null,"Desmond Howard","Arizona",1529,null,"two tied",null,100,null,"Steve Smith","Tennessee",2]
[2001,"Fred McAfee","Oakland",27,null,"Ron Dixon","Minnesota",90,null,"MarTay Jenkins","Arizona",1906,null,"Michael Bates","Green Bay",105,null,"Kevin Williams","Tampa Bay",3]
[]
[]
[]
[null,"PUNT RETURNS"]
[]
[]
[null,"Punt Return Ave","Team",null,null,"Punt Returns","Team",null,null,"Fair Catches","Team",null,null,"Punt Retun Yards","Team",null,null,"Punt Return Long","Team",null,null,"Punt Return TDs","Team"]
[2009,"Reggie Bush","Green Bay",19.2,null,"Mark Jones","Detroit",40,null,"Chris Carr","Jacksonville",26,null,"Reggie Bush","Green Bay",634,null,"Reggie Bush","Green Bay",87,null,"Reggie Bush","Green Bay",5]
[2008,"Devin Hester","Philadelphia",20,null,"Roscoe Parrish","San Francisco",61,null,"Steve Breaston","Miami",38,null,"Roscoe Parrish","San Francisco",587,null,"Dante Hall","Oakland",96,null,"Devin Hester","Philadelphia",5]
[2007,"Pacman Jones","Oakland",14.8,null,"Roscoe Parrish","Indianapolis",62,null,"Troy Walters","St. Louis",26,null,"Roscoe Parrish","Indianapolis",694,null,"Devin Hester","Philadelphia",87,null,"Pacman Jones","Oakland",2]
[2006,"Chad Morton","Miami",12.5,null,"Antonio Chatman","Tampa Bay",43,null,"Terry Fair","Detroit",28,null,"Pacman Jones","Oakland",404,null,"Chad Morton","Miami",87,null,"Pacman Jones","Oakland",2]
[2005,"Allen Rossum","Atlanta",17.899999999999999,null,"Alvis Whitted","Cincinnati",53,null,"Antonio Chatman","Giants",39,null,"Nate Clements","St. Louis",541,null,"Allen Rossum","Atlanta",87,null,"Nate Burleson","Oakland",2]
[2004,"Dante Hall ","San Francisco",21.8,null,"J.J. Moses","Denver",51,null,"Antonio Chatman","Giants",25,null,"Dante Hall ","San Francisco",523,null,"two tied",null,81,null,"Dante Hall","San Francisco",3]
[2003,"Michael Lewis","Cleveland",15.7,null,"Santana Moss","Washington",47,null,"two tied",null,22,null,"Santana Moss","Washington",695,null,"Dante Hall","St. Louis",83,null,"Santana Moss","Washington",3]
[2002,"Tim Dwight","Cincinnati",17.8,null,"Arnold Jackson","Giants",46,null,"Vinny Sutherland","Chicago",26,null,"Tim Dwight","Cincinnati",516,null,"Eric Metcalf","Atlanta",93,null,"three tied",null,2]
[2001,"Peter Warrick","Cleveland",20.399999999999999,null,"three tied",null,44,null,"Allen Rossum","Dallas",26,null,"Jermaine Lewis","Jacksonville",881,null,"Peter Warrick","Cleveland",94,null,"Jermaine Lewis","Jacksonville",4]
[]
[]
[]
[null,"KICKING"]
[]
[]
[null,"Points Scored","Team",null,null,"Field Goal Attempts","Team",null,null,"Field Goals Made","Team",null,null,"Field Goal Pct.","Team",null,null,"Field Goal Long","Team",null,null,"Touchbacks","Team"]
[2009,"Dan Carpenter","Giants",133,null,"Mark Bryant","Baltimore",38,null,"Rob Bironas","New Orleans",31,null,"John Kasey","Houston",100,null,"Matt Prater","Miami",63,null,"Josh Brown","San Francisco",26]
[2008,"Josh Brown","San Francisco",130,null,"Nick Folk","Philadelphia",44,null,"Mark Bryant","Baltimore",33,null,"Jason Elam","New England",96.2,null,"Kris Brown","Arizona",58]
[2007,"Jeff Wilkins","Tampa Bay",146,null,"John Kasey","Houston",40,null,"Jeff Wilkins","Tampa Bay",35,null,"Matt Stover","Jacksonville",100,null,"John Kasey","Houston",58,null,"Not"]
[2006,"Josh Scobee","Oakland",136,null,"Josh Scobee","Oakland",40,null,"Josh Scobee","Oakland",36,null,"Mike Vanderjagt","Giants",94.4,null,"Rob Bironas","Houston",57,null,"recorded"]
[2005,"John Carney","St. Louis",165,null,"John Carney","St. Louis",49,null,"John Carney","St. Louis",42,null,"Adam Vinatieri","Detroit",96.3,null,"five tied",null,54,null,"before"]
[2004,"Gary Anderson","Baltimore",163,null,"Gary Anderson","Baltimore",42,null,"Gary Anderson","Baltimore",39,null,"Mike Vanderjagt","Giants",96.7,null,"Sebastian Janikowski","Washington",59,null,2009]
[2003,"Phil Dawson","Dallas",130,null,"two tied",null,39,null,"Kris Brown","Arizona",32,null,"Jason Hanson","Minnesota",92.3,null,"Ryan Longwell","Buffalo",55]
[2002,"two tied",null,160,null,"Jeff Wilkins","Tampa Bay",39,null,"two tied",null,33,null,"Olindo Mare","Jets",100,null,"three tied",null,54]
[2001,"Matt Stover","Jacksonville",170,null,"Matt Stover","Jacksonville",50,null,"Matt Stover","Jacksonville",42,null,"Ryan Lindell","Dallas",100,null,"three tied",null,55]
[]
[]
[]
[null,"PUNTING"]
[]
[]
[null,"Punting Ave.","Team",null,null,"Punts","Team",null,null,"Punt Yardage","Team",null,null,"Punts Inside 20","Team",null,null,"Touchbacks","Team",null,null,"Long Punt","Team",null,null,"Punts Blocked","Team"]
[2009,"Donnie Jones","San Francisco",49.4,null,"two tied",null,85,null,"Andy Lee","Oakland",3980,null,"Dave Zastudil","Cincinnati",24,null,"Dustin Colquitt","Miami",23,null,"Shane Lechler","Denver",83,null,"Jason Baker","Tampa Bay",5]
[2008,"Shane Lechler","Denver",48.5,null,"two tied",null,104,null,"Bo Scifres","Tennessee",4971,null,"Brad Maynard","New England",40,null,"Mat McBriar","Jacksonville",19,null,"Dustin Colquitt","Miami",87,null,"Todd Sauerbrun","Houston",5]
[2007,"Scott Player","Kansas City",46.2,null,"Brad Maynard","New England",105,null,"Brad Maynard","New England",4618,null,"Dustin Colquitt","Miami",38,null,"Brian Moorman","St. Louis",16,null,"Jason Baker","Tampa Bay",86,null,"Jason Baker","Tampa Bay",3]
[2006,"Hunter Smith","Pittsburgh",44.9,null,"B.J. Sander","Chicago",104,null,"B.J. Sander","Chicago",4288,null,"Brian Moorman","St. Louis",33,null,"Mat McBriar","Jacksonville",12,null,"Todd Sauerbrun","San Francisco",73,null,"Chris Hanson","Oakland",2]
[2005,"Shane Lechler","Denver",45.9,null,"Chris Gardocki","Carolina",104,null,"Chris Gardocki","Carolina",4465,null,"Mitch Berger","San Diego",27,null,"Hunter Smith","Baltimore",15,null,"Shane Lechler","Denver",66,null,"Micah Knorr","Chicago",3]
[2004,"Shane Lechler","Denver",47.3,null,"Chad Stanley","Philadelphia",95,null,"Brian Moorman","St. Louis",4158,null,"Mitch Berger","San Diego",25,null,"two tied",null,13,null,"Dave Zastudil","Houston",73,null,"Todd Sauerbrun","New Orleans",3]
[2003,"Todd Sauerbrun","Carolina",45.5,null,"Mitch Berger","San Diego",87,null,"Chris Hanson","Oakland",3577,null,"Shane Lechler","Denver",22,null,"Scott Player","Kansas City",15,null,"Chris Hanson","Oakland",81,null,"Dave Zastudil","Houston",4]
[2002,"Todd Sauerbrun","Carolina",48.4,null,"Chris Gardocki","New Orleans",95,null,"Chris Gardocki","New Orleans",4023,null,"Shane Lechler","Denver",47,null,"Chris Gardocki","New Orleans",12,null,"Craig Hentrich","Cincinnati",71,null,"Micah Knorr","Chicago",4]
[2001,"Darren Bennett","Arizona",47.3,null,"Hunter Smith","Baltimore",95,null,"Hunter Smith","Baltimore",4231,null,"Sean Landeta","Jets",44,null,"Scott Player","Seattle",13,null,"Royals","Buffalo",78,null,"Jeff Feagles","Giants",4]
[]
[]
[]
[null,"IFL SINGLE GAME RECORDS"]
[]
[]
[null,"RUSHING"]
[]
[null,"Rushing Attempts","Team",null,null,"Opponent","Date"]
[null,"Kevin Smith","Baltimore",51,null,null,"2009-12-09"]
[]
[]
[null,"Rushing Yards","Team",null,null,"Opponent","Date"]
[null,"Curtis Martin","Jacksonville",289,null,"Green Bay","2002-08-25"]
[]
[]
[null,"Rushing Touchdowns","Team",null,null,"Opponent","Date"]
[null,"Shaun Alexander","Washington",6,null,null,"2006-10-24"]
[null,"Curtis Martin","Jacksonville",6,null,"Green Bay","2002-08-25"]
[]
[]
[null,"Rushing Firstdowns","Team",null,null,"Opponent","Date"]
[null,"LaDainian Tomlinson","Green Bay",16,null,null,"2003-10-28"]
[null,"Emmitt Smith","Tampa Bay",16,null,"Arizona","2002-12-13"]
[]
[null,"Rushing Long","Team",null,null,"Opponent","Date"]
[null,"Adrian Peterson","Buffalo",93,null,null,"2010-09-27"]
[null,"Fred Taylor","Oakland",93,null,null,"2008-09-10"]
[]
[]
[null,"Rushing 10+","Team",null,null,"Opponent","Date"]
[null,"Emmitt Smith","Tampa Bay",12,null,"Arizona","2002-12-13"]
[]
[]
[null,"Fumbles","Team",null,null,"Opponent","Date"]
[null,"Jamie Martin","St. Louis",7,null,null,"2007-12-19"]
[]
[]
[]
[null,"RECEIVING"]
[]
[null,"Receptions","Team",null,null,"Opponent","Date"]
[null,"David Boston","Miami",18,null,null,"2004-12-14"]
[]
[]
[null,"Yards","Team",null,null,"Opponent","Date"]
[null,"Reggie Wayne","Kansas City",373,null,"Giants","2006-10-31"]
[]
[]
[null,"Long","Team",null,null,"Opponent","Date"]
[null,"Roy Williams","Jets",99,null,null,"2008-10-15"]
[]
[]
[null,"Touchdowns","Team",null,null,"Opponent","Date"]
[null,"Tony Gonzalez","Atlanta",5,null,null,"2006-10-10"]
[null,"Tony Gonzalez","Atlanta",5,null,null,"2005-12-10"]
[null,"Hines Ward","Indianapolis",5,null,null,"2004-11-28"]
[]
[null,"Receiving 25+","Team",null,null,"Opponent","Date"]
[null,"Anquan Boldin","Philadelphia",5,null,null,"2006-11-21"]
[null,"Laveranues Coles","St. Louis",5,null,null,"2004-12-20"]
[null,"Travis Taylor","Carolina",5,null,null,"2003-10-28"]
[null,"Rod Smith","San Francisco",5,null,null,"2001-12-18"]
[null,"Willie Jackson","Dallas",5,null,null,"2002-11-21"]
[]
[null,"Firstdowns","Team",null,null,"Opponent","Date"]
[null,"David Boston","Miami",16,null,null,"2004-12-14"]
[]
[]
[null,"Receiving RAC","Team",null,null,"Opponent","Date"]
[null,"Reggie Wayne","Kansas City",265,null,null,"2006-10-31"]
[]
[]
[null,"Targets","Team",null,null,"Opponent","Date"]
[null,"David Boston","Miami",29,null,null,"2004-12-14"]
[]
[]
[null,"Drops","Team",null,null,"Opponent","Date"]
[null,"MarTay Jenkins","Houston",5,null,null,"2003-12-09"]
[null,"Shaun Alexander","Oakland",5,null,null,"2001-08-23"]
[]
[]
[null,"PASSING"]
[]
[null,"Attempts","Team",null,null,"Opponent","Date"]
[null,"Ben Roethlisberger","Arizona",63,null,null,"2007-11-21"]
[]
[]
[null,"Completions","Team",null,null,"Opponent","Date"]
[null,"Matt Schaub","Washington",40,null,null,"2008-12-15"]
[null,"Chad Pennington","Pittsburgh",40,null,null,"2007-12-11"]
[]
[]
[null,"Yards","Team",null,null,"Opponent","Date"]
[null,"Drew Brees","Giants",572,null,null,"2006-10-31"]
[]
[]
[null,"Interceptions","Team",null,null,"Opponent","Date"]
[null,"John Navarre","Baltimore",6,null,null,"2005-12-28"]
[null,"Chris Redman","Cleveland",6,null,null,"2001-12-18"]
[]
[]
[null,"Long Completion","Team",null,null,"Opponent","Date"]
[null,"Matt Hasselbeck","Jets",99,null,null,"2008-10-15"]
[]
[]
[null,"Touchdowns","Team",null,null,"Opponent","Date"]
[null,"Chris Redman","Tennessee",7,null,null,"2010-09-27"]
[null,"Tom Brady","Denver",7,null,null,"2008-12-01"]
[null,"Chad Pennington","Minnesota",7,null,null,"2005-11-28"]
[null,"Peyton Manning","Dallas",7,null,null,"2001-12-04"]
[]
[]
[null,"Times Sacked","Team",null,null,"Opponent","Date"]
[null,"Quincy Carter","Chicago",13,null,null,"2005-09-26"]
[]
[]
[]
[null,"DEFENSE"]
[]
[null,"Interceptions","Team",null,null,"Opponent","Date"]
[null,"Dawan Landry","Miami",5,null,null,"2007-10-30"]
[]
[]
[null,"Interception Return Yards","Team",null,null,"Opponent","Date"]
[null,"Dawan Landry","Miami",175,null,null,"2007-10-30"]
[]
[]
[null,"Interception Long","Team",null,null,"Opponent","Date"]
[null,"Mike Minter","Minnesota",104,null,null,"2004-09-05"]
[]
[]
[null,"Interception Touchdowns","Team",null,null,"Opponent","Date"]
[null,"Dawan Landry","Cincinnati",3,null,null,"2010-09-25"]
[null,"Dawan Landry","Miami",3,null,null,"2007-10-30"]
[]
[]
[null,"Deflections","Team",null,null,"Opponent","Date"]
[null,"Reggie Howard","New Orleans",5,null,null,"2003-08-31"]
[null,"Nate Clements","San Francisco",5,null,null,"2002-12-05"]
[]
[]
[null,"Tackles","Team",null,null,"Opponent","Date"]
[null,"Larry Foote","Green Bay",21,null,null,"2010-09-30"]
[null,"Jon Beason","New England",21,null,null,"2008-09-24"]
[null,"Teddy Lehman","Green Bay",21,null,null,"2005-12-22"]
[null,"Bernardo Harris","Denver",21,null,null,"2001-12-18"]
[]
[]
[null,"Stuffs","Team",null,null,"Opponent","Date"]
[null,"Teddy Lehman","Green Bay",7,null,null,"2005-12-11"]
[null,"Micheal Barrow","Minnesota",7,null,null,"2001-08-27"]
[]
[null,"Stuff Yards","Team",null,null,"Opponent","Date"]
[null,"Gregory Favors","Buffalo",22,null,null,"2002-08-23"]
[]
[]
[null,"Sacks","Team",null,null,"Opponent","Date"]
[null,"Joey Porter","Green Bay",8,null,null,"2001-10-28"]
[]
[]
[null,"Sack Yards","Team",null,null,"Opponent","Date"]
[null,"Joey Porter","Green Bay",49,null,null,"2001-10-28"]
[]
[]
[null,"Hurries","Team",null,null,"Opponent","Date"]
[null,"Marco Coleman","Seattle",9,null,null,"2001-10-01"]
[]
[]
[null,"Safties","Team",null,null,"Opponent","Date"]
[null,"Jason Gildon","Indianapolis",2,null,null,"2001-08-19"]
[]
[]
[]
[null,"SPECIAL TEAMS"]
[]
[null,"Kicker Points","Team",null,null,"Opponent","Date"]
[null,"Nate Kaeding","Chicago",25,null,null,"2007-12-19"]
[]
[]
[null,"Field Goal Attempts","Team",null,null,"Opponent","Date"]
[null,"John Carney","St. Louis",8,null,null,"2005-12-04"]
[null,"Jason Elam","Green Bay",8,null,null,"2001-11-05"]
[]
[]
[null,"Field Goals Made","Team",null,null,"Opponent","Date"]
[null,"Jeff Wilkins","Tampa Bay",7,null,null,"2008-11-05"]
[null,"John Carney","St. Louis",7,null,null,"2005-12-04"]
[null,"Jason Elam","Green Bay",7,null,null,"2001-11-05"]
[]
[]
[null,"Extra Point Attempts","Team",null,null,"Opponent","Date"]
[null,"Matt Stover","Jacksonville",10,null,null,"2002-10-28"]
[]
[]
[null,"Extra Points Made","Team",null,null,"Opponent","Date"]
[null,"Matt Stover","Jacksonville",10,null,null,"2002-10-28"]
[]
[]
[null,"Field Goal Long","Team",null,null,"Opponent","Date"]
[null,"Matt Prater","Miami",63,null,null,"2009-12-15"]
[]
[]
[null,"Field Goals 40+ ","Team",null,null,"Opponent","Date"]
[null,"Jeff Wilkins","Tampa Bay",5,null,null,"2001-10-12"]
[]
[]
[null,"Field Goals 50+ ","Team",null,null,"Opponent","Date"]
[null,"Ryan Succop","Baltimore",2,null,null,"2010-10-04"]
[null,"Jason Elam","New England",2,null,null,"2006-10-17"]
[null,"Jason Elam","Green Bay",2,null,null,"2005-09-15"]
[null,"Gary Anderson","New Orleans",2,null,null,"2001-10-27"]
[]
[]
[null,"Punts","Team",null,null,"Opponent","Date"]
[null,"Mat McBriar","Jacksonville",14,null,null,"2008-10-22"]
[]
[]
[null,"Punt Yards","Team",null,null,"Opponent","Date"]
[null,"Mat McBriar","Jacksonville",649,null,null,"2008-10-22"]
[]
[]
[null,"Punts Blocked","Team",null,null,"Opponent","Date"]
[null,"Dustin Colquitt","Miami",2,null,null,"2010-09-27"]
[null,"Tod Sauerbrun","Houston",2,null,null,"2008-10-22"]
[null,"Micah Knorr","Chicago",2,null,null,"2005-12-12"]
[null,"Tom Rouen","Oakland",2,null,null,"2004-11-21"]
[null,"Jeff Feagles","Giants",2,null,null,"2001-09-26"]
[]
[]
[null,"Punt Long","Team",null,null,"Opponent","Date"]
[null,"Dustin Colquitt","Miami",87,null,null,"2008-09-12"]
[]
[]
[null,"Kickoff Returns","Team",null,null,"Opponent","Date"]
[null,"J.J. Arrington","Washington",11,null,null,"2007-12-19"]
[null,"Ronney Jenkins","San Francisco",11,null,null,"2001-11-15"]
[]
[]
[null,"Kickoff Return Yards","Team",null,null,"Opponent","Date"]
[null,"Joshua Cribbs","Minnesota",359,null,null,"2008-11-05"]
[]
[]
[null,"Kickoff Return Long","Team",null,null,"Opponent","Date"]
[null,"Jerome Mathis","Oakland",105,null,null,"2008-10-27"]
[null,"Michael Bates","Green Bay",105,null,null,"2001-09-12"]
[]
[]
[null,"Kickoff Return Touchdown","Team",null,null,"Opponent","Date"]
[null,"Jerome Mathis","Oakland",2,null,null,"2008-10-27"]
[]
[]
[null,"Punt Returns","Team",null,null,"Opponent","Date"]
[null,"Jay Bellamy","New England",10,null,null,"2007-12-19"]
[]
[]
[null,"Punt Return Yards","Team",null,null,"Opponent","Date"]
[null,"Tim Dwight","Cincinnati",208,null,null,"2002-09-29"]
[]
[]
[null,"Punt Return Long","Team",null,null,"Opponent","Date"]
[null,"Peter Warrick","Cleveland",94,null,null,"2001-09-28"]
[]
[]
[null,"Fair Catches","Team",null,null,"Opponent","Date"]
[null,"Bobby Engram","Houston",8,null,null,"2004-11-16"]
[]
[]
[null,"Punt Returns Touchdowns","Team",null,null,"Opponent","Date"]
[null,"Reggie Bush","Green Bay",2,null,null,"2009-10-13"]
[null,"Tim Dwight","Cincinnati",2,null,null,"2002-09-29"]